{"text_format":"1","workbook":"xlsx","n_sheets":3,"sheets":["Índice","Consulta","."],"not_rendered":{"charts":0,"images":2,"macros":1,"external_links":0,"defined_names":1,"comments":0,"pivot_tables":0},"unopened":[],"bounds":{"document_bytes":16777216,"sheet_cells":100000,"rows_first":2000,"rows_last":500,"rows_between":2000,"halvings":0,"cell_chars":16384,"cell_head_chars":4096},"cells_cut":0,"cells_raw":0,"read":"whole","date_system":"1900"}

{"sheet":"Índice","index":0,"n_rows":119,"n_cols":14,"rows_kept":119,"cut":false,"hidden":false,"merged":[[113,6,113,7],[113,8,113,9],[43,10,43,13],[49,10,49,13],[62,10,62,13],[56,10,56,13],[70,10,70,13],[76,10,76,13],[83,10,83,13],[90,10,90,13],[96,10,96,13],[104,10,104,13],[113,10,113,13],[96,8,96,9],[104,8,104,9],[83,6,83,7],[83,8,83,9],[90,6,90,7],[90,8,90,9],[43,8,43,9],[10,7,11,7],[12,7,15,7],[16,7,17,7],[18,7,20,7],[21,7,23,7],[24,7,25,7],[70,8,70,9],[76,6,76,7],[76,8,76,9],[49,6,49,7],[49,8,49,9],[26,7,29,7],[2,1,2,3],[106,6,110,6],[106,7,110,7],[64,7,67,7],[72,6,73,6],[72,7,73,7],[78,6,80,6],[78,7,80,7],[45,6,46,6],[45,7,46,7],[51,6,53,6],[51,7,53,7],[58,6,59,6],[58,7,59,7],[43,6,43,7],[104,6,104,7],[115,6,117,6],[115,7,117,7],[2,6,2,12],[56,6,56,7],[56,8,56,9],[62,6,62,7],[62,8,62,9],[70,6,70,7],[85,6,87,6],[85,7,87,7],[92,6,93,6],[92,7,93,7],[98,6,101,6],[98,7,101,7],[96,6,96,7],[64,6,67,6],[3,10,3,12],[3,8,3,9],[3,6,3,7],[5,6,6,6],[7,6,9,6],[5,7,6,7],[7,7,9,7],[30,7,34,7],[35,7,37,7],[26,6,29,6],[30,6,34,6],[35,6,37,6],[8,1,8,2],[9,1,9,2],[24,6,25,6],[10,6,11,6],[12,6,15,6],[16,6,17,6],[18,6,20,6],[21,6,23,6],[3,1,3,2],[4,1,4,2],[5,1,5,2],[6,1,6,2],[7,1,7,2]]}
[]
[]
[null,"Distribucion General del Catalogo de Objetos Geograficos, NTIG_CR02_01.2016\nActualizado 01-02-2016",null,null,null,null,"CATALOGO DE OBJETOS GEOGRAFICOS POR TEMA,\nNTIG_CR02_01.2016\n ACTUALIZADO AL 01-02-2016"]
[null,"Descripción",null,"Cantidad",null,null,"Tema",null,"Grupo",null,"Cantidad Total"]
[null,"Tema",null,10,null,null,"Código","Nombre","Código","Nombre","Objeto","Atributo","Atributo con dominio"]
[null,"Grupo",null,33,null,null,10,"CONTROL GEODÉSICO",1001,"Control Geodésico Geométrico",3,50,10]
[null,"Objeto",null,304,null,null,null,null,1002,"Control Geodésico Físico",2,31,7]
[null,"Atributo",null,2173,null,null,11,"MODELO DIGITAL DEL TERRENO",1101,"Modelo Digital de Elevación",3,28,17]
[null,"Atributo con dominio",null,736,null,null,null,null,1102,"Modelo Gravimétrico",1,8,3]
[null,"Dominios",null,2446,null,null,null,null,1103,"Modelo Batimétrico",1,12,5]
[null,null,null,null,null,null,12,"RELIEVE",1201,"Curvas de Nivel, Línea de Costa y elevaciones acotadas",6,30,10]
[null,null,null,null,null,null,null,null,1202,"Otros Accidentes del Relieve",10,23,0]
[null,null,null,null,null,null,13,"INFRAESTRUCTURA VIAL Y TRANSPORTES",1301,"Transporte Terrestre",19,139,83]
[null,null,null,null,null,null,null,null,1302,"Transporte Ferroviario",9,47,29]
[null,null,null,null,null,null,null,null,1303,"Transporte Aéreo",4,33,17]
[null,null,null,null,null,null,null,null,1304,"Transporte Marítimo",5,31,11]
[null,null,null,null,null,null,14,"EDIFICACIONES Y CONSTRUCCIONES",1401,"Edificios prominentes",17,127,80]
[null,null,null,null,null,null,null,null,1402,"Obra pública y otras facilidades ",62,377,209]
[null,null,null,null,null,null,15,"ELEMENTOS HIDROGRÁFICOS Y MARINOS",1501,"Cauce y Drenaje",11,65,19]
[null,null,null,null,null,null,null,null,1502,"Cuerpo de agua y otros",18,97,20]
[null,null,null,null,null,null,null,null,1503,"Accidentes Costeros y Marinos",11,40,14]
[null,null,null,null,null,null,16,"LÍMITES",1601,"Delimitación Territorial Administrativa",15,117,22]
[null,null,null,null,null,null,null,null,1602,"Áreas Específicas",6,58,10]
[null,null,null,null,null,null,null,null,1603,"Áreas Bajo Regímenes Especiales",3,28,3]
[null,null,null,null,null,null,17,"COBERTURA Y USO DEL SUELO",1701,"Vegetación Natural",8,33,4]
[null,null,null,null,null,null,null,null,1702,"Cultivos y Plantaciones",9,44,16]
[null,null,null,null,null,null,18,"IMÁGENES",1801,"Fotografía Aérea",3,25,3]
[null,null,null,null,null,null,null,null,1802,"Imagen de Satélite",1,6,1]
[null,null,null,null,null,null,null,null,1803,"Imagen de Radar",1,10,2]
[null,null,null,null,null,null,null,null,1804,"Imagen LIDAR",1,9,3]
[null,null,null,null,null,null,19,"NOMBRES GEOGRÁFICOS",1901,"Topónimos",12,124,24]
[null,null,null,null,null,null,null,null,1902,"Hidrónimos y otros",17,189,36]
[null,null,null,null,null,null,null,null,1903,"Orónimos y otros",15,134,25]
[null,null,null,null,null,null,null,null,1904,"Topónimos de Accidentes Costeros ",12,132,24]
[null,null,null,null,null,null,null,null,1905,"Edificaciones, obras públicas y otros",13,105,25]
[null,null,null,null,null,null,20,"CATASTRO",2001,"Área Catastral",1,3,0]
[null,null,null,null,null,null,null,null,2002,"Área de Uso Público",1,5,0]
[null,null,null,null,null,null,null,null,2003,"Obra Civil",4,13,4]
[null,null,null,null,null,null,null,"Total de códigos",33,"Total",{"$f":"SUM(K6:K38)","v":304},{"$f":"SUM(L6:L38)","v":2173},736]
[]
[]
[]
[]
[null,null,null,null,null,null,"Tema",null,"Grupo",null,"Cantidad Total"]
[null,null,null,null,null,null,"Código","Nombre","Código","Nombre","Objeto","Atributo","Atributo con dominio","Dominios"]
[null,null,null,null,null,null,10,"CONTROL GEODÉSICO",1001,"Control Geodésico Geométrico",3,50,10,39]
[null,null,null,null,null,null,null,null,1002,"Control Geodésico Físico",2,31,7,22]
[null,null,null,null,null,null,null,"Total de códigos",2,"Total",5,81,17,{"$f":"SUM(N46:N47)","v":61}]
[]
[null,null,null,null,null,null,"Tema",null,"Grupo",null,"Cantidad Total"]
[null,null,null,null,null,null,"Código","Nombre","Código","Nombre","Objeto","Atributo","Atributo con dominio","Dominios"]
[null,null,null,null,null,null,11,"MODELO DIGITAL DEL TERRENO",1101,"Modelo Digital de Elevación",3,28,17,53]
[null,null,null,null,null,null,null,null,1102,"Modelo Gravimétrico",1,8,3,12]
[null,null,null,null,null,null,null,null,1103,"Modelo Batimétrico",1,12,5,21]
[null,null,null,null,null,null,null,"Total de códigos",3,"Total",5,48,25,{"$f":"SUM(N52:N54)","v":86}]
[]
[null,null,null,null,null,null,"Tema",null,"Grupo",null,"Cantidad Total"]
[null,null,null,null,null,null,"Código","Nombre","Código","Nombre","Objeto","Atributo","Atributo con dominio","Dominios"]
[null,null,null,null,null,null,12,"RELIEVE",1201,"Curvas de Nivel, Línea de Costa y elevaciones acotadas",6,30,10,34]
[null,null,null,null,null,null,null,null,1202,"Otros Accidentes del Relieve",1,23,0,0]
[null,null,null,null,null,null,null,"Total de códigos",2,"Total",16,53,10,{"$f":"SUM(N59:N60)","v":34}]
[]
[null,null,null,null,null,null,"Tema",null,"Grupo",null,"Cantidad Total"]
[null,null,null,null,null,null,"Código","Nombre","Código","Nombre","Objeto","Atributo","Atributo con dominio","Dominios"]
[null,null,null,null,null,null,13,"INFRAESTRUCTURA VIAL Y TRANSPORTES",1301,"Transporte Terrestre",19,139,83,241]
[null,null,null,null,null,null,null,null,1302,"Transporte Ferroviario",9,47,29,100]
[null,null,null,null,null,null,null,null,1303,"Transporte Aéreo",4,33,17,31]
[null,null,null,null,null,null,null,null,1304,"Transporte Marítimo",5,31,11,35]
[null,null,null,null,null,null,null,"Total de códigos",4,"Total",{"$f":"SUM(K65:K68)","v":37},{"$f":"SUM(L65:L68)","v":250},140,{"$f":"SUM(N65:N68)","v":407}]
[]
[null,null,null,null,null,null,"Tema",null,"Grupo",null,"Cantidad Total"]
[null,null,null,null,null,null,"Código","Nombre","Código","Nombre","Objeto","Atributo","Atributo con dominio","Dominios"]
[null,null,null,null,null,null,14,"EDIFICACIONES Y CONSTRUCCIONES",1401,"Edificios prominentes",17,127,80,251]
[null,null,null,null,null,null,null,null,1402,"Obra pública y otras facilidades ",62,377,209,624]
[null,null,null,null,null,null,null,"Total de códigos",2,"Total",{"$f":"SUM(K73:K74)","v":79},{"$f":"SUM(L73:L74)","v":504},{"$f":"SUM(M73:M74)","v":289},{"$f":"SUM(N73:N74)","v":875}]
[]
[null,null,null,null,null,null,"Tema",null,"Grupo",null,"Cantidad Total"]
[null,null,null,null,null,null,"Código","Nombre","Código","Nombre","Objeto","Atributo","Atributo con dominio","Dominios"]
[null,null,null,null,null,null,15,"ELEMENTOS HIDROGRÁFICOS Y MARINOS",1501,"Cauce y Drenaje",11,65,19,59]
[null,null,null,null,null,null,null,null,1502,"Cuerpo de agua y otros",18,97,20,63]
[null,null,null,null,null,null,null,null,1503,"Accidentes Costeros y Marinos",11,40,14,42]
[null,null,null,null,null,null,null,"Total de códigos",3,"Total",40,202,53,{"$f":"SUM(N79:N81)","v":164}]
[]
[null,null,null,null,null,null,"Tema",null,"Grupo",null,"Cantidad Total"]
[null,null,null,null,null,null,"Código","Nombre","Código","Nombre","Objeto","Atributo","Atributo con dominio","Dominios"]
[null,null,null,null,null,null,16,"LÍMITES",1601,"Delimitación Territorial Administrativa",15,117,22,60]
[null,null,null,null,null,null,null,null,1602,"Áreas Específicas",6,58,10,41]
[null,null,null,null,null,null,null,null,1603,"Áreas Bajo Regímenes Especiales",3,28,3,17]
[null,null,null,null,null,null,null,"Total de códigos",3,"Total",24,203,35,{"$f":"SUM(N86:N88)","v":118}]
[]
[null,null,null,null,null,null,"Tema",null,"Grupo",null,"Cantidad Total"]
[null,null,null,null,null,null,"Código","Nombre","Código","Nombre","Objeto","Atributo","Atributo con dominio","Dominios"]
[null,null,null,null,null,null,17,"COBERTURA Y USO DEL SUELO",1701,"Vegetación Natural",8,33,4,14]
[null,null,null,null,null,null,null,null,1702,"Cultivos y Plantaciones",9,44,16,52]
[null,null,null,null,null,null,null,"Total de códigos",2,"Total",17,77,20,{"$f":"SUM(N93:N94)","v":66}]
[]
[null,null,null,null,null,null,"Tema",null,"Grupo",null,"Cantidad Total"]
[null,null,null,null,null,null,"Código","Nombre","Código","Nombre","Objeto","Atributo","Atributo con dominio","Dominios"]
[null,null,null,null,null,null,18,"IMÁGENES",1801,"Fotografía Aérea",3,25,3,12]
[null,null,null,null,null,null,null,null,1802,"Imagen de Satélite",1,6,1,4]
[null,null,null,null,null,null,null,null,1803,"Imagen de Radar",1,10,2,13]
[null,null,null,null,null,null,null,null,1804,"Imagen LIDAR",1,9,3,10]
[null,null,null,null,null,null,null,"Total de códigos",4,"Total",6,50,9,{"$f":"SUM(N99:N102)","v":39}]
[]
[null,null,null,null,null,null,"Tema",null,"Grupo",null,"Cantidad Total"]
[null,null,null,null,null,null,"Código","Nombre","Código","Nombre","Objeto","Atributo","Atributo con dominio","Dominios"]
[null,null,null,null,null,null,19,"NOMBRES GEOGRÁFICOS",1901,"Topónimos",12,124,24,106]
[null,null,null,null,null,null,null,null,1902,"Hidrónimos y otros",17,189,36,163]
[null,null,null,null,null,null,null,null,1903,"Orónimos y otros",15,134,25,111]
[null,null,null,null,null,null,null,null,1904,"Topónimos de Accidentes Costeros ",12,132,24,97]
[null,null,null,null,null,null,null,null,1905,"Edificaciones, obras públicas y otros",13,105,25,104]
[null,null,null,null,null,null,null,"Total de códigos",5,"Total",69,684,134,{"$f":"SUM(N107:N111)","v":581}]
[]
[null,null,null,null,null,null,"Tema",null,"Grupo",null,"Cantidad Total"]
[null,null,null,null,null,null,"Código","Nombre","Código","Nombre","Objeto","Atributo","Atributo con dominio","Dominios"]
[null,null,null,null,null,null,20,"CATASTRO",2001,"Área Catastral",1,3,0,0]
[null,null,null,null,null,null,null,null,2002,"Área de Uso Público",1,5,0,0]
[null,null,null,null,null,null,null,null,2003,"Obra Civil",4,13,4,15]
[null,null,null,null,null,null,null,"Total de códigos",3,"Total",6,21,4,{"$f":"SUM(N116:N118)","v":15}]

{"sheet":"Consulta","index":1,"n_rows":306,"n_cols":51,"rows_kept":306,"cut":false,"hidden":false,"merged":[[2,2,7,5],[18,2,18,5]]}
[]
[null,null,null,null,null,null,null,null,null,null,null,null,null,null,null,null,null,"Cod_Tema","Nom_Tema",null,"grup","Cod_Grupo","Nom_Grupo","Cod_Grupo",null,"OBJ","Cod_Objeto","Nom_Objeto","Geometría","Definición"]
[null,null,"CATÁLOGO DE OBJETOS GEOGRÁFICOS PARA DATOS FUNDAMENTALES DE COSTA RICA\nINSTITUTO GEOGRÁFICO NACIONAL\nVERSIÓN: 1.0\nNTIG_CR02_01.2016\nISO 19110 - ISO 19126",null,null,null,null,null,null,null,{"$f":"IF(EXACT($D$13,M3),L3,\"\")","v":{"$error":"#N/A"}},{"$f":"INDEX(V3:V35,MATCH($D$13,$U$3:$U$35,0))","v":{"$error":"#N/A"}},{"$f":"MID(L3,1,2)","v":{"$error":"#N/A"}},null,{"$f":"IFERROR(VLOOKUP(K3,$V$3:$X$35,2,FALSE),\"\")","v":""},null,null,"CONTROL GEODÉSICO",10,null,10,1001,"Control Geodésico Geométrico",1001,null,"10011",100101,"PUNTO GEODÉSICO HORIZONTAL (VÉRTICE)","Punto 3D","Puntos en el terreno los cuales que constituyen los vértices de una red de geodésica."]
[null,null,null,null,null,null,null,null,null,null,{"$error":"#N/A"},{"$f":"INDEX(V3:V35,MATCH($D$13,$U$3:$U$35,0)+1)","v":{"$error":"#N/A"}},{"$error":"#N/A"},null,"",null,null,"MODELO DIGITAL DEL TERRENO",11,null,10,1002,"Control Geodésico Físico",1002,null,"10012",100102,"PUNTO GEODÉSICO DE CONTROL VERTICAL","Punto 3D","Punto prefijado  con altura referida al nivel medio del mar.",null,null,null,null,null,null,null,null,null,null,null,null,null,null,null,null,null,null,null,null,{"$f":"CONCATENATE(D3,D4,D5,D6,D7)","v":""}]
[null,null,null,null,null,null,null,null,null,null,{"$error":"#N/A"},{"$f":"INDEX(V3:V35,MATCH($D$13,$U$3:$U$35,0)+2)","v":{"$error":"#N/A"}},{"$error":"#N/A"},null,"",null,null,"RELIEVE",12,null,11,1101,"Modelo Digital de Elevación",1101,null,"10013",100103,"COTA DE ELEVACIÓN COMPROBADA","Punto 3D","Dato de elevacion representado en la cartografia y medido en campo "]
[null,null,null,null,null,null,null,null,null,null,{"$error":"#N/A"},{"$f":"INDEX(V3:V35,MATCH($D$13,$U$3:$U$35,0)+3)","v":{"$error":"#N/A"}},{"$error":"#N/A"},null,"",null,null,"INFRAESTRUCTURA VIAL Y TRANSPORTES",13,null,11,1102,"Modelo Gravimétrico",1102,null,"10021",100201,"PUNTO GRAVIMÉTRICO","Punto 3D","Punto materializado cuyo valor de gravedad (aceleración de gravedad) ha sido observado directamente en el campo."]
[null,null,null,null,null,null,null,null,null,null,{"$error":"#N/A"},{"$f":"INDEX(V3:V35,MATCH($D$13,$U$3:$U$35,0)+4)","v":{"$error":"#N/A"}},{"$error":"#N/A"},null,"",null,null,"EDIFICACIONES Y CONSTRUCCIONES",14,null,11,1103,"Modelo Batimétrico",1103,null,"10022",100202,"PUNTO GEOMAGNÉTICO","Punto 3D","Punto materializado cuyo valor de intensidad total del campo magnético terrestre o de alguna de sus componentes, ha sido observada directamente."]
[null,null,null,null,null,null,null,null,null,null,{"$error":"#N/A"},{"$f":"INDEX(V3:V35,MATCH($D$13,$U$3:$U$35,0)+5)","v":{"$error":"#N/A"}},{"$error":"#N/A"},null,"",null,null,"ELEMENTOS HIDROGRÁFICOS Y MARINOS",15,null,12,1201,"Curvas de Nivel, Línea de Costa y elevaciones acotadas",1201,null,"11011",110101,"MODELO DIGITAL DE ELEVACIÓN (RASTER)","Imagen 3D","Se refiere la altimetria de una zona mediante un conjunto de cotas que describe la distribución espacial de una caracteristica del territorio con relacion a un sistema de referencia concreto. \n"]
[null,null,null,null,null,null,null,null,null,null,null,null,null,null,null,null,null,"LÍMITES",16,null,12,1202,"Otros Accidentes del Relieve",1202,null,"11012",110102,"MODELO DIGITAL DE ELEVACIÓN TIN","Pixel 3D","Estructura de datos para para la representación de superficies continuas. Un TIN conecta diferentes localizaciones espacieles, a través de una red irregular de triángulos tomando como vértices las coordenadas X, Y y Z."]
[null,null,null,null,null,null,null,null,null,null,null,null,null,null,null,null,null,"COBERTURA Y USO DEL SUELO",17,null,13,1301,"Transporte Terrestre",1301,null,"11013",110103,"GRID DE MODELO DIGITAL DE TERRENO","Pixel 3D","Malla regular de celdas con un valor de X, Y y Z, donde cada celda viene definida por un numero de fila y de columna. Los datos asociados puden ser discretos, categóricos o continuos."]
[null,null,"TEMA",null,null,null,null,null,null,null,null,null,null,null,null,null,null,"IMÁGENES",18,null,13,1302,"Transporte Ferroviario",1302,null,"11021",110201,"MODELO DIGITAL DE GRAVIMETRIA","Raster 3D","Valores promedio estimados de aceleración de la gravedad medida sobre el terreno u otro efecto gravimétrico, anomalías, efectos, correcciones, etc."]
[null,null,"Nombre:",null,"Elegir tema",null,null,null,null,null,null,null,null,null,null,null,null,"NOMBRES GEOGRÁFICOS",19,null,13,1303,"Transporte Aéreo",1303,null,"11031",110301,"MODELO DIGITAL DE BATIMETRIA","Raster 3D","Conjunto de capas (generalmente raster) que representan distintas características de los fondos oceánicos. Es una representación en 3D del fondo marino creada a partir de los datos de elevación de la superficie marina."]
[null,null,"Código:",{"$f":"IFERROR(VLOOKUP(D12,$R$3:$S$13,2,FALSE),\"\")","v":""},null,null,null,null,null,null,null,null,null,null,null,null,null,"CATASTRO",20,null,13,1304,"Transporte Marítimo",1304,null,"12011",120101,"CURVA ÍNDICE","Línea 3D ","Línea imaginaria que une puntos con la misma elevación con respecto al nivel medio del mar, se indican y numeran en los mapas cada 25, 50 o más metros,  según sea la escala del mismo."]
[null,null,null,null,null,null,null,null,null,null,null,null,null,null,null,null,null,null,null,null,14,1401,"Edificios prominentes",1401,null,"12012",120102,"CURVA INTERMEDIA","Línea 3D","Línea imaginaria que une puntos con la misma elevación con respecto al nivel medio del mar, se indican cada 5, 10 o más metros, según la escala del mapa."]
[null,null,"GRUPO",null,null,null,null,null,null,null,null,null,null,null,null,null,null,null,null,null,14,1402,"Obra pública y otras facilidades ",1402,null,"12013",120103,"CURVA SUPLEMENTARIA","Línea 3D","Línea imaginaria que une puntos con la misma elevación con respecto al nivel medio del mar, se indican como el valor medio entre dos curvas intermedias, pueden ser cada 2,5, 5 o más metros, esto según la escala del mapa."]
[null,null,"Nombre:",null,"Elegir grupo",null,null,null,null,null,"guia",null,null,null,null,null,null,null,null,null,15,1501,"Cauce y Drenaje",1501,null,"12014",120104,"LÍNEA DE COSTA","Línea 3D","Es la línea en la superficie de la Tierra que define el límite entre el mar y la tierra firme."]
[null,null,"Código:",{"$f":"IFERROR(VLOOKUP(D16,$W$3:$X$35,2,FALSE),\"\")","v":""},null,null,null,null,null,null,1,{"$f":"CONCATENATE($D$17,K17)","v":"1"},null,null,null,null,null,null,null,null,15,1502,"Cuerpo de agua y otros",1502,null,"12015",120105,"CURVA BATIMÉTRICA","Línea 3D","Línea imaginaria que une puntos con la misma profundidad con respecto al nivel medio del mar.  Deben ir acotadas."]
[null,null,null,null,null,null,null,null,null,null,2,"2",null,null,null,null,null,null,null,null,15,1503,"Accidentes Costeros y Marinos",1503,null,"12016",120106,"COTA FOTOGRAMÉTRICA DE ELEVACIÓN","Punto 3D","Punto de elevación extraído de la compilación del relieve sobre el modelo fotogramétrico sin comprobar en el campo."]
[null,null,"OBJETO",null,null,null,null,null,null,null,3,"3",null,null,null,null,null,null,null,null,16,1601,"Delimitación Territorial Administrativa",1601,null,"12021",120201,"CORTE O TALUD","Línea 3D","Corte artificial, vertical o inclinado, del terreno. "]
[null,null,"Código","Nombre","Geometría","Definición",null,null,null,null,4,"4",null,null,null,null,null,null,null,null,16,1602,"Áreas Específicas",1602,null,"12022",120202,"TERRAPLÉN O RELLENO","Línea 3D","Depósito de material que se realiza sobre el terreno natural para alcanzar el nivel subrasante."]
[null,null,{"$f":"IFERROR(VLOOKUP(L17,$Z$3:$AD$306,2,FALSE),\"\")","v":""},{"$f":"IFERROR(VLOOKUP(L17,$Z$3:$AD$306,3,FALSE),\"\")","v":""},{"$f":"IFERROR(VLOOKUP(L17,$Z$3:$AD$306,4,FALSE),\"\")","v":""},{"$f":"IFERROR(VLOOKUP(L17,$Z$3:$AD$306,5,FALSE),\"\")","v":""},null,null,null,null,5,"5",null,null,null,null,null,null,null,null,16,1603,"Áreas Bajo Regímenes Especiales",1603,null,"12023",120203,"DIQUE O BANCO","Línea 3D","Muro rocoso para evitar el desbordamiento de las aguas."]
[null,null,{"$f":"IFERROR(VLOOKUP(L18,$Z$3:$AD$306,2,FALSE),\"\")","v":""},{"$f":"IFERROR(VLOOKUP(L18,$Z$3:$AD$306,3,FALSE),\"\")","v":""},{"$f":"IFERROR(VLOOKUP(L18,$Z$3:$AD$306,4,FALSE),\"\")","v":""},{"$f":"IFERROR(VLOOKUP(L18,$Z$3:$AD$306,5,FALSE),\"\")","v":""},null,null,null,null,6,"6",null,null,null,null,null,null,null,null,17,1701,"Vegetación Natural",1701,null,"12024",120204,"ESCARPE O DECLIVE","Línea 3D","Terreno de fuerte inclinación natural y por lo tanto generalmente rocoso."]
[null,null,"","","","",null,null,null,null,7,"7",null,null,null,null,null,null,null,null,17,1702,"Cultivos y Plantaciones",1702,null,"12025",120205,"FARALLÓN","Línea 3D","Resalte rocoso de grandes dimensiones."]
[null,null,"","","","",null,null,null,null,8,"8",null,null,null,null,null,null,null,null,18,1801,"Fotografía Aérea",1801,null,"12026",120206,"CARCAVA","Línea 3D","Zanja producto de la erosión de las aguas de escorrentía o el pastoreo excesivo en zonas de cierta pendiente."]
[null,null,"","","","",null,null,null,null,9,"9",null,null,null,null,null,null,null,null,18,1802,"Imagen de Satélite",1802,null,"12027",120207,"DEPRESIÓN/CRÁTER","Línea 3D","Superficie cerrada de altitud inferior al terreno circundante (relieve inverso). "]
[null,null,"","","","",null,null,null,null,10,"10",null,null,null,null,null,null,null,null,18,1803,"Imagen de Radar",1803,null,"12028",120208,"PEÑASCO O AFLORAMIENTO","Línea 3D","Sitios donde asoma en la superficie del terreno el estrato rocoso que lo conforma."]
[null,null,"","","","",null,null,null,null,11,"11",null,null,null,null,null,null,null,null,18,1804,"Imagen LIDAR",1804,null,"12029",120209,"CAVERNA","Línea 3D","Cavidad natural, vertical u horizontal, entre las rocas."]
[null,null,"","","","",null,null,null,null,12,"12",null,null,null,null,null,null,null,null,19,1901,"Topónimos",1901,null,"120210",120210,"TERRENO ARENOSO","Polígono 2D","Áreas de arena natural o islas de arena asentadas en el lecho del río y producto del arrastre de material de diferente granulometría."]
[null,null,"","","","",null,null,null,null,13,"13",null,null,null,null,null,null,null,null,19,1902,"Hidrónimos y otros",1902,null,"13011",130101,"AUTOPISTA CON DIVISIÓN","Línea 3D","Carretera con sentidos de circulación separados por demarcación o división material , cada uno  con dos o más carriles, sin cruces a nivel."]
[null,null,"","","","",null,null,null,null,14,"14",null,null,null,null,null,null,null,null,19,1903,"Orónimos y otros",1903,null,"13012",130102,"CARRETERA CON PAVIMENTO DOS VIAS","Línea 3D","Camino de ancho variable con superficie de rodamiento en concreto o asfalto."]
[null,null,"","","","",null,null,null,null,15,"15",null,null,null,null,null,null,null,null,19,1904,"Topónimos de Accidentes Costeros ",1904,null,"13013",130103,"CARRETERA CON PAVIMENTO UNA VIA/ ACCESO PRIVADO","Línea 3D","Camino de ancho variable con superficie de rodamiento en concreto o asfalto."]
[null,null,"","","","",null,null,null,null,16,"16",null,null,null,null,null,null,null,null,19,1905,"Edificaciones, obras públicas y otros",1905,null,"13014",130104,"CARRETERA SIN PAVIMENTO DOS VIAS","Línea 3D","Camino de ancho variable con superficie de rodamiento en grava, lastre u otro."]
[null,null,"","","","",null,null,null,null,17,"17",null,null,null,null,null,null,null,null,20,2001,"Área Catastral",2001,null,"13015",130105,"CARRETERA SIN PAVIMENTO UNA VIA","Línea 3D","Camino de ancho variable con superficie de rodamiento en grava, lastre u otro."]
[null,null,"","","","",null,null,null,null,18,"18",null,null,null,null,null,null,null,null,20,2002,"Área de Uso Público",2002,null,"13016",130106,"CALLE CENTRO URBANO","Línea 3D","Calles y/o avenidas que cruzan los centros de las áreas densamente urbanizadas principalmente en las ciudades."]
[null,null,"","","","",null,null,null,null,19,"19",null,null,null,null,null,null,null,null,20,2003,"Obra Civil",2003,null,"13017",130107,"CAMINO DE TIERRA","Línea 3D","Camino de ancho variable con superficie de rodamiento en tierra, de difícil tránsito en el periodo lluvioso."]
[null,null,"","","","",null,null,null,null,20,"20",null,null,null,null,null,null,null,null,null,null,null,null,null,"13018",130108,"VEREDA","Línea 3D","Camino angosto, comúnmente para el tránsito de peatones y animales ."]
[null,null,"","","","",null,null,null,null,21,"21",null,null,null,null,null,null,null,null,null,null,null,null,null,"13019",130109,"CARRETERA EN CONSTRUCCIÓN","Línea 3D","Vía donde los trabajos de construcción aún no permiten el paso vehicular."]
[null,null,"","","","",null,null,null,null,22,"22",null,null,null,null,null,null,null,null,null,null,null,null,null,"130110",130110,"SENDERO PEATONAL","Línea 3D","Vía angosta generalmente con superficie artificial para el tránsito de personas."]
[null,null,"","","","",null,null,null,null,23,"23",null,null,null,null,null,null,null,null,null,null,null,null,null,"130111",130111,"PUENTE VEHICULAR","Polígono 3D","Estructura generalmente de concreto o metal para la travesía vehicular sobre ríos, caminos y otros elementos."]
[null,null,"","","","",null,null,null,null,24,"24",null,null,null,null,null,null,null,null,null,null,null,null,null,"130112",130112,"PUENTE PEATONAL","Polígono/Punto 3D","Estructura generalmente de concreto o metal que permite el paso de personas sobre ríos, caminos y otros elementos."]
[null,null,"","","","",null,null,null,null,25,"25",null,null,null,null,null,null,null,null,null,null,null,null,null,"130113",130113,"PASO ELEVADO","Polígono/Punto 3D","Estructura aérea para la travesía peatonal sobre carreteras."]
[null,null,"","","","",null,null,null,null,26,"26",null,null,null,null,null,null,null,null,null,null,null,null,null,"130114",130114,"PASO A DESNIVEL","Polígono 3D","Punto donde se cruzan dos vías o una sobrepone a la otra a desnivel."]
[null,null,"","","","",null,null,null,null,27,"27",null,null,null,null,null,null,null,null,null,null,null,null,null,"130115",130115,"CRUCE VIAL A NIVEL","Polígono/Punto 3D","Punto donde se cruzan dos vías  a nivel."]
[null,null,"","","","",null,null,null,null,28,"28",null,null,null,null,null,null,null,null,null,null,null,null,null,"130116",130116,"TÚNEL VIAL","Polígono/Punto 3D","Perforación que se hace en un terreno de forma horizontal en donde la longitud de éste domina las demás dimensiones. Se usan principalmente como medio de continuidad y conección vial entre montañas."]
[null,null,"","","","",null,null,null,null,29,"29",null,null,null,null,null,null,null,null,null,null,null,null,null,"130117",130117,"PEAJE","Polígono/Punto 3D","Edificación destinada al cobro de derecho de tránsito en autopistas."]
[null,null,"","","","",null,null,null,null,30,"30",null,null,null,null,null,null,null,null,null,null,null,null,null,"130118",130118,"SEPARADOR DE AUTOPISTA","Línea 3D","Muro bajo o zona verde que separa los dos sentidos de circulación en una carretera o autopista."]
[null,null,"","","","",null,null,null,null,31,"31",null,null,null,null,null,null,null,null,null,null,null,null,null,"130119",130119,"VADO","Línea/Punto 3D","Lugar de un río con fondo firme, llano y poco profundo,  que permite el paso de peatones, animales y vehículos. Parte baja en una carretera que permite el paso de una corriente de agua."]
[null,null,"","","","",null,null,null,null,32,"32",null,null,null,null,null,null,null,null,null,null,null,null,null,"13021",130201,"VÍA FÉRREA","Línea 3D","Vía de ferrocarril con paso permanente de trenes."]
[null,null,"","","","",null,null,null,null,33,{"$f":"CONCATENATE($D$17,K49)","v":"33"},null,null,null,null,null,null,null,null,null,null,null,null,null,"13022",130202,"PATIO FERROVIARIO","Polígono 3D","Espacio descubierto cerca de las estaciones de ferrocarril, en que maniobran las locomotoras."]
[null,null,"","","","",null,null,null,null,34,"34",null,null,null,null,null,null,null,null,null,null,null,null,null,"13023",130203,"ESTACIÓN FERROVIARIA","Polígono 3D","Instalaciones con servicios varios que funcionan como punto de partida y llegada de trenes o como parada intermedia, además incluye andenes y oficinas."]
[null,null,"","","","",null,null,null,null,35,"35",null,null,null,null,null,null,null,null,null,null,null,null,null,"13024",130204,"DESVIADERO","Línea 3D","Estructura ferroviaria que permite el paso de trenes sobre un segmento de vía alterno en el momento en que circula otro ferrocarril en sentido contrario (en el tramo en que se intersecarían)."]
[null,null,"","","","",null,null,null,null,36,"36",null,null,null,null,null,null,null,null,null,null,null,null,null,"13025",130205,"PUENTE FERROVIARIO","Polígono/Punto 3D","Estructura que permite el paso de trenes sobre un curso de agua (río o quebrada)."]
[null,null,"","","","",null,null,null,null,37,"37",null,null,null,null,null,null,null,null,null,null,null,null,null,"13026",130206,"VIA FERREA ABANDONADA","Línea 3D","Vía de ferrocarril sin uso o en abandono."]
[null,null,"","","","",null,null,null,null,38,"38",null,null,null,null,null,null,null,null,null,null,null,null,null,"13027",130207,"TÚNEL FERROVIARIO","Polígono/Punto 3D","Obra ingenieril cuya misión es la de permitir la continuidad física y geométrica de la vía férrea en el caso de que se presente en su camino un obstáculo natural masivo que debe ser atravesado por la línea."]
[null,null,"","","","",null,null,null,null,39,"39",null,null,null,null,null,null,null,null,null,null,null,null,null,"13028",130208,"PASO A NIVEL DE FERROCARRIL","Polígono/Punto 3D","Sitio donde el ferrocarril atraviesa un camino (intersección)."]
[null,null,"","","","",null,null,null,null,40,"40",null,null,null,null,null,null,null,null,null,null,null,null,null,"13029",130209,"PASO ELEVADO DE FERROCARRIL","Polígono/Punto 3D","Sitio donde el ferrocarril atraviesa un camino (intersección)."]
[null,null,"","","","",null,null,null,null,41,"41",null,null,null,null,null,null,null,null,null,null,null,null,null,"13031",130301,"AEROPUERTO/TERMINAL AÉREA","Polígono 3D","Instalaciones debidamente acondicionadas para el tráfico masivo de personas que usan el medio de transporte aéreo, tanto en vuelos nacionales como internacionales."]
[null,null,"","","","",null,null,null,null,42,"42",null,null,null,null,null,null,null,null,null,null,null,null,null,"13032",130302,"PISTA DE ATERRIZAJE","Polígono 3D","Espacio terrestre debidamente equipado para el aterrizaje de aviones y otros tipos de aeronaves."]
[null,null,"","","","",null,null,null,null,43,"43",null,null,null,null,null,null,null,null,null,null,null,null,null,"13033",130303,"AERÓDROMO","Polígono 3D","Instalaciones debidamente acondicionadas para  la salida, llegada y maniobra de aeroplanos, aeronaves, etc.\n"]
[null,null,"","","","",null,null,null,null,44,"44",null,null,null,null,null,null,null,null,null,null,null,null,null,"13034",130304,"HELIPUERTO","Polígono/Punto 3D","Plataforma de uso exclusivo el salida y llegada de helicópteros, se ubican en las azoteas de los edificios o áreas así designadas."]
[null,null,"","","","",null,null,null,null,45,"45",null,null,null,null,null,null,null,null,null,null,null,null,null,"13041",130401,"MUELLE","Polígono 3D","Instalaciones debidamente acondicionadas para el atraco de barcos y otros tipos de embarcaciones acuáticas. "]
[null,null,"","","","",null,null,null,null,46,"46",null,null,null,null,null,null,null,null,null,null,null,null,null,"13042",130402,"ATRACADERO","Polígono 3D","Lugar donde pueden atracar o acercarse a tierra sin peligro las embarcaciones menores."]
[null,null,"","","","",null,null,null,null,47,"47",null,null,null,null,null,null,null,null,null,null,null,null,null,"13043",130403,"MARINA","Polígono 3D","Se refiere al lugar o espacio en el mar donde se concentran navíos con distintos fines."]
[null,null,"","","","",null,null,null,null,48,"48",null,null,null,null,null,null,null,null,null,null,null,null,null,"13044",130404,"FARO","Punto 3D","Torre de señalización luminosa cerca de la costa, su luz se utiliza como guía para la navegación de los barcos."]
[null,null,"","","","",null,null,null,null,49,"49",null,null,null,null,null,null,null,null,null,null,null,null,null,"13045",130405,"ROMPEOLAS/MALECÓN","Línea 3D","Estructura costera que tiene por finalidad principal proteger la costa o un puerto de la acción de las olas del mar."]
[null,null,"","","","",null,null,null,null,50,"50",null,null,null,null,null,null,null,null,null,null,null,null,null,"14011",140101,"EDIFICIO  O CASA INDEPENDIENTE","Polígono 3D","Edificación pequeña o casa de habitación independiente."]
[null,null,"","","","",null,null,null,null,51,"51",null,null,null,null,null,null,null,null,null,null,null,null,null,"14012",140102,"EDIFICIO PROMINENTE","Polígono 3D","Incluye los edificios privados de uso empresarial, comercial, condominial o apartamental ubicados en las áreas densamenete construidas o mancha urbana."]
[null,null,"","","","",null,null,null,null,52,"52",null,null,null,null,null,null,null,null,null,null,null,null,null,"14013",140103,"EDIFICIO GUBERNAMENTAL","Polígono 3D","Edificio ocupado por una dependencia del gobierno (Poder Ejecutivo, Legislativo, Judicial, instituciones autónomas, ministerios, entre otras). Se debe rotular con su nombre."]
[null,null,"","","","",null,null,null,null,53,"53",null,null,null,null,null,null,null,null,null,null,null,null,null,"14014",140104,"EDIFICIO MUNICIPAL","Polígono 3D","Edificio donde funciona un gobierno local o municipalidad."]
[null,null,"","","","",null,null,null,null,54,"54",null,null,null,null,null,null,null,null,null,null,null,null,null,"14015",140105,"CENTRO EDUCATIVO","Polígono 3D","Edificio o instalaciones públicas o privadas dedicadas a la enseñanza en general (preparatoria, primaria, secundaria, entre otras)."]
[null,null,"","","","",null,null,null,null,55,"55",null,null,null,null,null,null,null,null,null,null,null,null,null,"14016",140106,"UNIVERSIDADES Y COLEGIOS UNIVERSITARIOS","Polígono 3D","Edificio o instalaciones públicas o privadas dedicadas a la enseñanza superior profesional."]
[null,null,"","","","",null,null,null,null,56,"56",null,null,null,null,null,null,null,null,null,null,null,null,null,"14017",140107,"EDIFICIO RELIGIOSO","Polígono 3D","Edificio donde se congregan los fieles para celebrar sus actividades religiosas."]
[null,null,"","","","",null,null,null,null,57,"57",null,null,null,null,null,null,null,null,null,null,null,null,null,"14018",140108,"SALÓN COMUNAL","Polígono 3D","Edificio dedicado a actividades comunales diversas (fiestas, reuniones, charlas y otras)."]
[null,null,"","","","",null,null,null,null,58,"58",null,null,null,null,null,null,null,null,null,null,null,null,null,"14019",140109,"TRIBUNALES DE JUSTICIA","Polígono 3D","Edificio donde funciona una sede de los Tribunales de Justicia."]
[null,null,"","","","",null,null,null,null,59,"59",null,null,null,null,null,null,null,null,null,null,null,null,null,"140110",140110,"HOSPITAL Y CENTRO DE SALUD","Polígono 3D","Edificio donde funciona alguna dependencia o centro de salud (hospital, clínica, EBAIS)."]
[null,null,"","","","",null,null,null,null,60,"60",null,null,null,null,null,null,null,null,null,null,null,null,null,"140111",140111,"CRUZ ROJA","Polígono 3D","Edificio ocupado por una sede de la Cruz Roja."]
[null,null,"","","","",null,null,null,null,61,"61",null,null,null,null,null,null,null,null,null,null,null,null,null,"140112",140112,"ESTACIÓN DE POLICÍA","Polígono 3D","Edificio que sirve de sede a una representación policial del país (comisaría, delegación, guardia rural, entre otras)."]
[null,null,"","","","",null,null,null,null,62,"62",null,null,null,null,null,null,null,null,null,null,null,null,null,"140113",140113,"ESTACIÓN DE BOMBEROS","Polígono 3D","Edificio donde funciona una sede del cuerpo de bomberos. "]
[null,null,"","","","",null,null,null,null,null,null,null,null,null,null,null,null,null,null,null,null,null,null,null,"140114",140114,"CORREO","Polígono 3D","Edificio donde funciona una sede de servicios de correo. "]
[null,null,"","","","",null,null,null,null,null,null,null,null,null,null,null,null,null,null,null,null,null,null,null,"140115",140115,"BIBLIOTECA","Polígono 3D","Edificio destinado a la consulta de libros y otras fuentes escritas."]
[null,null,{"$f":"IFERROR(VLOOKUP(L77,$Z$3:$AD$306,2,FALSE),\"\")","v":""},"","","",null,null,null,null,null,null,null,null,null,null,null,null,null,null,null,null,null,null,null,"140116",140116,"MUSEO","Polígono 3D","Edificio donde se colecciona y exponen diversas obras de interés histórico, artístico, religioso, entre otros."]
[null,null,{"$f":"IFERROR(VLOOKUP(L78,$Z$3:$AD$306,2,FALSE),\"\")","v":""},"","","",null,null,null,null,null,null,null,null,null,null,null,null,null,null,null,null,null,null,null,"140117",140117,"EDIFICIO DE LA EMBAJADA Y CONSULADO","Polígono 3D","Edificio ocupado por una representación diplomática, ya sea a nivel de embajada o consulado."]
[null,null,null,null,null,null,null,null,null,null,null,null,null,null,null,null,null,null,null,null,null,null,null,null,null,"14021",140201,"BANCO","Polígono 3D","Edificio destinado al ahorro, crédito y otras transacciones financieras."]
[null,null,null,null,null,null,null,null,null,null,null,null,null,null,null,null,null,null,null,null,null,null,null,null,null,"14022",140202,"INDUSTRIA","Polígono 3D","Edificio o instalaciones donde se transforma materia prima en bienes o productos de consumo."]
[null,null,null,null,null,null,null,null,null,null,null,null,null,null,null,null,null,null,null,null,null,null,null,null,null,"14023",140203,"SUPERMERCADO","Polígono 3D","Establecimiento comercial tipo autoservicio con gran variedad de productos."]
[null,null,null,null,null,null,null,null,null,null,null,null,null,null,null,null,null,null,null,null,null,null,null,null,null,"14024",140204,"CENTRO COMERCIAL","Polígono 3D","Establecimiento bajo  techo o al aire libre que agrupa una gran variedad de comercio, servicio y distracción (centros comerciales, malles, etc.)"]
[null,null,null,null,null,null,null,null,null,null,null,null,null,null,null,null,null,null,null,null,null,null,null,null,null,"14025",140205,"MERCADO PÚBLICO","Polígono 3D","Sitio público destinado permanentemente, o en días señalados, para vender y comprar bienes."]
[null,null,null,null,null,null,null,null,null,null,null,null,null,null,null,null,null,null,null,null,null,null,null,null,null,"14026",140206,"DEPÓSITO/BODEGA","Polígono 2D"," Edificio para el almacenamiento temporal de bienes (productos agrícolas, electrodomésticos)."]
[null,null,null,null,null,null,null,null,null,null,null,null,null,null,null,null,null,null,null,null,null,null,null,null,null,"14027",140207,"ESTACIÓN DE BUSES","Polígono 3D","Edificio o espacio abierto que sirve de punto de salida y llegada de autobuses (terminal de autobuses)."]
[null,null,null,null,null,null,null,null,null,null,null,null,null,null,null,null,null,null,null,null,null,null,null,null,null,"14028",140208,"ESTACIÓN DE COMBUSTIBLE","Polígono 3D","Edificio o espacio abierto que sirve para dispensar combustible a cualquier tipo de vehículo automotor."]
[null,null,null,null,null,null,null,null,null,null,null,null,null,null,null,null,null,null,null,null,null,null,null,null,null,"14029",140209,"HOTEL","Polígono 3D","Edificio acondicionado para el alojamiento remunerado. Algunos ofrecen facilidades para la recreación y los negocios."]
[null,null,null,null,null,null,null,null,null,null,null,null,null,null,null,null,null,null,null,null,null,null,null,null,null,"140210",140210,"ASILO DE ANCIANOS","Polígono 3D","Establecimiento en el que viven personas adultas mayores, sin muchos medios y que necesitan atención."]
[null,null,null,null,null,null,null,null,null,null,null,null,null,null,null,null,null,null,null,null,null,null,null,null,null,"140211",140211,"ORFANATO","Polígono 3D","Institución encargada del cuidado de menores de edad, huérfanos o abandonados."]
[null,null,null,null,null,null,null,null,null,null,null,null,null,null,null,null,null,null,null,null,null,null,null,null,null,"140212",140212,"CÁRCEL","Polígono 3D","Instalaciones destinadas a privados de libertad."]
[null,null,null,null,null,null,null,null,null,null,null,null,null,null,null,null,null,null,null,null,null,null,null,null,null,"140213",140213,"FUNERARIA","Polígono 3D","Construcción que brinda el servicio de velación de muertos y a la venta de ataúdes."]
[null,null,null,null,null,null,null,null,null,null,null,null,null,null,null,null,null,null,null,null,null,null,null,null,null,"140214",140214,"CEMENTERIO","Polígono 3D","Área destinada a la inhumación."]
[null,null,null,null,null,null,null,null,null,null,null,null,null,null,null,null,null,null,null,null,null,null,null,null,null,"140215",140215,"ESTADIO","Polígono 3D","Un estadio es una construcción cerrada, con graderías para los espectadores, destinado a competencias deportivas."]
[null,null,null,null,null,null,null,null,null,null,null,null,null,null,null,null,null,null,null,null,null,null,null,null,null,"140216",140216,"PLAZA/CANCHA","Polígono 2D","Una plaza o una cancha es un espacio público urbano o rural, amplio y descubierto, en el cual se suelen realizar eventos deportivos."]
[null,null,null,null,null,null,null,null,null,null,null,null,null,null,null,null,null,null,null,null,null,null,null,null,null,"140217",140217,"GIMNASIO","Polígono 3D","Construcción cerrada con graderías para los espectadores y un espacio central destinado a la practica y competencia de diversos deportes."]
[null,null,null,null,null,null,null,null,null,null,null,null,null,null,null,null,null,null,null,null,null,null,null,null,null,"140218",140218,"REDONDEL/PLAZA DE TOROS","Polígono 3D","Construcción con  condiciones específicas que sirve para los espectaculos taurinos."]
[null,null,null,null,null,null,null,null,null,null,null,null,null,null,null,null,null,null,null,null,null,null,null,null,null,"140219",140219,"MIRADOR","Polígono 2D","Construcción con  condiciones específicas que sirve para la observación de la panoramica general de un espacio geográfico con riquesa escénica."]
[null,null,null,null,null,null,null,null,null,null,null,null,null,null,null,null,null,null,null,null,null,null,null,null,null,"140220",140220,"PARQUE MUNICIPAL","Polígono 2D","Terreno situado en el interior de una población que se destina a prados, jardines y arbolado sirviendo como lugar de esparcimiento y recreación de los ciudadanos."]
[null,null,null,null,null,null,null,null,null,null,null,null,null,null,null,null,null,null,null,null,null,null,null,null,null,"140221",140221,"TEATRO","Polígono 3D","Edificación que se utiliza para la presentación de espectáculos culturales como: dramaturgia, danza, música, entre otros."]
[null,null,null,null,null,null,null,null,null,null,null,null,null,null,null,null,null,null,null,null,null,null,null,null,null,"140222",140222,"ANFITEATRO","Polígono 3D","Edificación generalmente al aire libre que se utiliza para la presentación de espectáculos culturales como dramaturgía, danza, música, entre otros. "]
[null,null,null,null,null,null,null,null,null,null,null,null,null,null,null,null,null,null,null,null,null,null,null,null,null,"140223",140223,"CENTRO RECREATIVO","Polígono 2D","Instalaciones que presentan un conjunto de atracciones, espacios para el ocio, entretenimiento, educación y cultura."]
[null,null,null,null,null,null,null,null,null,null,null,null,null,null,null,null,null,null,null,null,null,null,null,null,null,"140224",140224,"CENTRO DEPORTIVO","Polígono 2D","Instalaciones dedicadas a usos deportivos, para lo cual posee diversos equipos e instalaciones destinados a la práctica de los mismos."]
[null,null,null,null,null,null,null,null,null,null,null,null,null,null,null,null,null,null,null,null,null,null,null,null,null,"140225",140225,"CAMPO DE GOLF","Polígono 2D","Campo o cancha de hierba natural al aire libre y que ocupa una superficie amplia, se compone generalmente de 9 ó 18 recorridos parciales.  No tiene una superficie de juego estandarizada. "]
[null,null,null,null,null,null,null,null,null,null,null,null,null,null,null,null,null,null,null,null,null,null,null,null,null,"140226",140226,"PARQUE ZOOLÓGICO","Polígono 2D","Instalación en la que se exhiben animales dentro de los recintos expuestos al público y en las que también pueden ser criados."]
[null,null,null,null,null,null,null,null,null,null,null,null,null,null,null,null,null,null,null,null,null,null,null,null,null,"140227",140227,"ESTACIÓN EXPERIMENTAL","Polígono 2D","Unidad Académica de la Facultad de Ciencias Agroalimentarias de algunas universidades, dedicada a la docencia, investigación y acción social."]
[null,null,null,null,null,null,null,null,null,null,null,null,null,null,null,null,null,null,null,null,null,null,null,null,null,"140228",140228,"ASERRADERO","Polígono 2D","Edificación equipada y mecanizada dedicada al aserrado de madera y que provee de productos semi-acabados en madera natural."]
[null,null,null,null,null,null,null,null,null,null,null,null,null,null,null,null,null,null,null,null,null,null,null,null,null,"140229",140229,"INGENIO","Polígono 2D","Instalaciones dedicadas a procesar la  caña de azúcar, con el fin de obtener azúcar, así como de otros derivados de la planta."]
[null,null,null,null,null,null,null,null,null,null,null,null,null,null,null,null,null,null,null,null,null,null,null,null,null,"140230",140230,"BENEFICIO","Polígono 2D","Instalaciones dedicadas a procesar el fruto del café, con el objeto de obtener café en grano tostado."]
[null,null,null,null,null,null,null,null,null,null,null,null,null,null,null,null,null,null,null,null,null,null,null,null,null,"140231",140231,"INVERNADERO","Polígono 2D","Es un lugar cerrado con una cubierta traslúcida de vidrio, sarán o plástico que permite el control de la temperatura, la humedad, etc.  y que se dedica a la producción de cultivos."]
[null,null,null,null,null,null,null,null,null,null,null,null,null,null,null,null,null,null,null,null,null,null,null,null,null,"140232",140232,"VIVERO","Polígono 2D","Conjunto de instalaciones agronómicas en la cual se plantan, germinan y maduran  todo tipo de plantas."]
[null,null,null,null,null,null,null,null,null,null,null,null,null,null,null,null,null,null,null,null,null,null,null,null,null,"140233",140233,"ESTABLO","Polígono 2D","Construcción permanente para el confinamiento de especies animales."]
[null,null,null,null,null,null,null,null,null,null,null,null,null,null,null,null,null,null,null,null,null,null,null,null,null,"140234",140234,"GRANJA","Polígono 2D","Construcción permanente para el confinamiento de aves como gallinas para la producción de huevos o para el consumo de su carne."]
[null,null,null,null,null,null,null,null,null,null,null,null,null,null,null,null,null,null,null,null,null,null,null,null,null,"140235",140235,"LECHERIA","Polígono 2D","Construcción dedicada al ordeño y almacenamiento temporal de la leche."]
[null,null,null,null,null,null,null,null,null,null,null,null,null,null,null,null,null,null,null,null,null,null,null,null,null,"140236",140236,"EXPLOTACIÓN AGROPECUARIA CONFINADANA","Polígono 2D","Facilidades para el manejo de animales y el almacenamiento de productos agrícolas y maquinaria agropecuaria (caballeriza, porqueriza, corrales, entre otros)."]
[null,null,null,null,null,null,null,null,null,null,null,null,null,null,null,null,null,null,null,null,null,null,null,null,null,"140237",140237,"CASA DE GUARDA RECURSOS","Polígono 3D","Edificación que sirve de albergue a los guardarecursos de áreas protegidas naturales y para proteger de la interperie equipo y materiales."]
[null,null,null,null,null,null,null,null,null,null,null,null,null,null,null,null,null,null,null,null,null,null,null,null,null,"140238",140238,"SILO","Polígono/Punto 2D","Construcción diseñada para almacenar granos y otros materiales a granel, como parte del ciclo de acopio de la agricultura."]
[null,null,null,null,null,null,null,null,null,null,null,null,null,null,null,null,null,null,null,null,null,null,null,null,null,"140239",140239,"REPRESA HIDROELÉCTRICA/REPRESA","Polígono 3D","Barrera fabricada con piedra u hormigón construido para contener agua de un cauce con el fin de produccir energía eléctrica."]
[null,null,null,null,null,null,null,null,null,null,null,null,null,null,null,null,null,null,null,null,null,null,null,null,null,"140240",140240,"PLANTA ELÉCTRICA","Polígono 3D","Instalaciones donde se genera energía eléctrica."]
[null,null,null,null,null,null,null,null,null,null,null,null,null,null,null,null,null,null,null,null,null,null,null,null,null,"140241",140241,"SUBESTACIÓN ELÉCTRICA","Polígono 3D","Patio de transformadores asociado a una línea de transmisión eléctrica donde se regula el voltaje."]
[null,null,null,null,null,null,null,null,null,null,null,null,null,null,null,null,null,null,null,null,null,null,null,null,null,"140242",140242,"CENTRAL DE TELECOMUNICACIONES","Polígono 3D","Edificio debidamente equipado (computarizado) para facilitar el trasiego de las comunicaciones (conexiones)."]
[null,null,null,null,null,null,null,null,null,null,null,null,null,null,null,null,null,null,null,null,null,null,null,null,null,"140243",140243,"TORRE DE ALTA TENSIÓN","Punto 3D","Estructura vertical, metálica y de altura variable utilizada para sostener cables y conductores de electricidad."]
[null,null,null,null,null,null,null,null,null,null,null,null,null,null,null,null,null,null,null,null,null,null,null,null,null,"140244",140244,"TORRE CELULAR","Punto 3D","Estructura vertical, metálica y de altura variable utilizada para ubicar antenas de telefonía celular."]
[null,null,null,null,null,null,null,null,null,null,null,null,null,null,null,null,null,null,null,null,null,null,null,null,null,"140245",140245,"TORRE EÓLICA","Punto 3D","Estructura vertical, metálica y de altura variable utilizada para colocar un aerogenerador movido por una turbina accionada por el viento."]
[null,null,null,null,null,null,null,null,null,null,null,null,null,null,null,null,null,null,null,null,null,null,null,null,null,"140246",140246,"TORRE DE COMUNICACIÓN","Punto 3D","Estructura vertical, metálica y de altura variable utilizada para ubicar antenas de transmisión de ondas de radio y televisión."]
[null,null,null,null,null,null,null,null,null,null,null,null,null,null,null,null,null,null,null,null,null,null,null,null,null,"140247",140247,"LÍNEA DE ALTA TENSIÓN","Línea 2D","Secuencia de torres y cables para conducir energía eléctrica (alto voltaje)."]
[null,null,null,null,null,null,null,null,null,null,null,null,null,null,null,null,null,null,null,null,null,null,null,null,null,"140248",140248,"REFINERIA DE HIDROCARBUROS","Polígono 2D","Plataforma industrial destinada a la refinación del petróleo y la producción de distintos combustibles fósiles."]
[null,null,null,null,null,null,null,null,null,null,null,null,null,null,null,null,null,null,null,null,null,null,null,null,null,"140249",140249,"OLEODUCTO","Línea ","Conducto artificial subterráneo o al aire libre empleado para el transporte de combustible."]
[null,null,null,null,null,null,null,null,null,null,null,null,null,null,null,null,null,null,null,null,null,null,null,null,null,"140250",140250,"GASODUCTO","Línea 2D","Conducto artificial expuesto o subterráneo, empleado para el transporte de gas."]
[null,null,null,null,null,null,null,null,null,null,null,null,null,null,null,null,null,null,null,null,null,null,null,null,null,"140251",140251,"TANQUE DE COMBUSTIBLE","Polígono 2D","Tanque para el almacenamientio de hidrocarburos."]
[null,null,null,null,null,null,null,null,null,null,null,null,null,null,null,null,null,null,null,null,null,null,null,null,null,"140252",140252,"TANQUE DE ALMACENAMIENTO","Polígono 2D","Tanque para el almacenamientio de diferentes tipos de productos."]
[null,null,null,null,null,null,null,null,null,null,null,null,null,null,null,null,null,null,null,null,null,null,null,null,null,"140253",140253,"COMPUERTA","Polígono/Punto 2D","Estructura artificial para el control del volumen de agua de una corriente."]
[null,null,null,null,null,null,null,null,null,null,null,null,null,null,null,null,null,null,null,null,null,null,null,null,null,"140254",140254,"QUIEBRA GRADIENTE","Polígono/Punto 2D","Estructura construida transversalmente a una corriente de agua con desnivel, con el fin de disminuir la velocidad y fuerza de la misma."]
[null,null,null,null,null,null,null,null,null,null,null,null,null,null,null,null,null,null,null,null,null,null,null,null,null,"140255",140255,"REVESTIMIENTO","Polígono 2D","Capa o cubierta de cemento o roca con que resguarda una superficie, gavión o alguna otra estructura semejante y para el mismo fin de retensión o contención."]
[null,null,null,null,null,null,null,null,null,null,null,null,null,null,null,null,null,null,null,null,null,null,null,null,null,"140256",140256,"ESTACIÓN DE BOMBEO","Polígono 2D","Obra de infraestructura donde se eleva agua u otro líquido por medio de una bomba."]
[null,null,null,null,null,null,null,null,null,null,null,null,null,null,null,null,null,null,null,null,null,null,null,null,null,"140257",140257,"CHIMENEA","Punto 2D","Conducto vertical que lleva gases que resultan de la combustión a la atmósfera."]
[null,null,null,null,null,null,null,null,null,null,null,null,null,null,null,null,null,null,null,null,null,null,null,null,null,"140258",140258,"MONUMENTO","Punto 3D","Obra pública que recuerda un personaje o un hecho histórico."]
[null,null,null,null,null,null,null,null,null,null,null,null,null,null,null,null,null,null,null,null,null,null,null,null,null,"140259",140259,"RUINAS/MONUMENTOS","Polígono 2D","Edificios abandonados o con algún grado de conservación y que no pueden usarse para su propósito original, pero tienen valor como patrimonio histórico."]
[null,null,null,null,null,null,null,null,null,null,null,null,null,null,null,null,null,null,null,null,null,null,null,null,null,"140260",140260,"EDIFICIO HISTÓRICO","Polígono 3D","Edificios con un alto valor arquitectónico y como patrimonio cultural de un pueblo o nación. "]
[null,null,null,null,null,null,null,null,null,null,null,null,null,null,null,null,null,null,null,null,null,null,null,null,null,"140261",140261,"ZONA VERDE","Polígono 2D","Espacio destinado a prados, jardines y arbolado y que se encuentra ubicado dentro de parques municipales, al lado de edificios, junto a carreteras, o en otros espacios de esparcimiento como parques zoológicos o parques recreativos."]
[null,null,null,null,null,null,null,null,null,null,null,null,null,null,null,null,null,null,null,null,null,null,null,null,null,"140262",140262,"PLANTAS PROCESADORAS O EMPACADORAS ","Polígono 3D","Instalaciones dedicadas a procesar o empacar productos como arroz y otros granos básicos, frutales, legumbres, hortalizas y otros productos vegetales y de origen animal."]
[null,null,null,null,null,null,null,null,null,null,null,null,null,null,null,null,null,null,null,null,null,null,null,null,null,"15011",150101,"LÍMITE DE AGUA","Polígono 3D","Línea límite o el borde de una superficie de agua: lago, laguna o un río de gran caudal.  Representa aquellos ríos u otros cauces que por escala se pueden restituir a doble margen y como polígono."]
[null,null,null,null,null,null,null,null,null,null,null,null,null,null,null,null,null,null,null,null,null,null,null,null,null,"15012",150102,"RÍO","Línea 3D","Corriente de agua continúa durante todo el año."]
[null,null,null,null,null,null,null,null,null,null,null,null,null,null,null,null,null,null,null,null,null,null,null,null,null,"15013",150103,"QUEBRADA","Línea 3D","La quebrada es de menor categoría que un río, tanto por su caudal como por su extensión."]
[null,null,null,null,null,null,null,null,null,null,null,null,null,null,null,null,null,null,null,null,null,null,null,null,null,"15014",150104,"QUEBRADA INTERMITENTE","Línea 3D","Quebrada con caudal solamente en el periodo lluvioso."]
[null,null,null,null,null,null,null,null,null,null,null,null,null,null,null,null,null,null,null,null,null,null,null,null,null,"15015",150105,"CANAL","Línea 3D","Cauce artificial por donde se conduce agua para diversos propósitos."]
[null,null,null,null,null,null,null,null,null,null,null,null,null,null,null,null,null,null,null,null,null,null,null,null,null,"15016",150106,"CAUCE SECO","Línea 3D","Lecho de un río o quebrada donde no hay flujo de agua."]
[null,null,null,null,null,null,null,null,null,null,null,null,null,null,null,null,null,null,null,null,null,null,null,null,null,"15017",150107,"ACEQUIA","Línea 3D","Zanja o cuneta por donde se conduce agua natural o se evacuan aguas pluviales, domésticas, comerciales o industriales"]
[null,null,null,null,null,null,null,null,null,null,null,null,null,null,null,null,null,null,null,null,null,null,null,null,null,"15018",150108,"YURRO","Línea 3D","Se refiere a un manantial o una naciente que se convierte en un cauce pequeño o quebrada."]
[null,null,null,null,null,null,null,null,null,null,null,null,null,null,null,null,null,null,null,null,null,null,null,null,null,"15019",150109,"ACUEDUCTO","Línea 2D","Conducto artificial superficial o subterráneo, empleado para el transporte de agua potable."]
[null,null,null,null,null,null,null,null,null,null,null,null,null,null,null,null,null,null,null,null,null,null,null,null,null,"150110",150110,"CAÑO","Línea 3D","Es un curso de agua  que se interna en terrenos fangosos de marismas y cuya profundidad y apariencia cambia en función de las mareas. Puede estar comunicado directamente con el mar o no.\n\n"]
[null,null,null,null,null,null,null,null,null,null,null,null,null,null,null,null,null,null,null,null,null,null,null,null,null,"150111",150111,"RÍA","Polígono 2D","Parte del río próximo a su entrada en el mar y hasta donde llegan las mareas."]
[null,null,null,null,null,null,null,null,null,null,null,null,null,null,null,null,null,null,null,null,null,null,null,null,null,"15021",150201,"LAGO O LAGUNA","Polígono 3D","Terreno con agua superficial permanente."]
[null,null,null,null,null,null,null,null,null,null,null,null,null,null,null,null,null,null,null,null,null,null,null,null,null,"15022",150202,"LAGUNA INTERMITENTE","Polígono 3D","Terreno con agua superficial temporal o intermitente. Línea de máximo embalsamiento en el momento de mayor embalse."]
[null,null,null,null,null,null,null,null,null,null,null,null,null,null,null,null,null,null,null,null,null,null,null,null,null,"15023",150203,"EMBALSE","Polígono 3D","Acumulación de agua producida por una obstrucción en el lecho de un río o arroyo que cierra parcial o totalmente su cauce. Línea de máximo embalse."]
[null,null,null,null,null,null,null,null,null,null,null,null,null,null,null,null,null,null,null,null,null,null,null,null,null,"15024",150204,"TERRENO DE HUMEDALES","Polígono 3D","Terreno húmedo todo o parte del año, cubierto de pasto u otro tipo de vegetación mayor. "]
[null,null,null,null,null,null,null,null,null,null,null,null,null,null,null,null,null,null,null,null,null,null,null,null,null,"15025",150205,"PANTANO","Polígono 3D","Tierra que está tan saturada de agua que no es adecuada para cultivo, generalmente está cubierta de cañas y otras plantas características."]
[null,null,null,null,null,null,null,null,null,null,null,null,null,null,null,null,null,null,null,null,null,null,null,null,null,"15026",150206,"MARISMA","Polígono 3D","Terrenos costeros sujetos a la acción de las mareas, se cubren y se descubren de agua de acuerdo a la marea."]
[null,null,null,null,null,null,null,null,null,null,null,null,null,null,null,null,null,null,null,null,null,null,null,null,null,"15027",150207,"CATARATA","Polígono/Punto 3D","Caída vertical o casi vertical del agua de un río o quebrada."]
[null,null,null,null,null,null,null,null,null,null,null,null,null,null,null,null,null,null,null,null,null,null,null,null,null,"15028",150208,"RÁPIDOS","Polígono/Punto 3D","Se forman donde la corriente de un río fluye con gran rapidez, con la superficie alterada por obstrucción, tales como rocas y cantos rodados."]
[null,null,null,null,null,null,null,null,null,null,null,null,null,null,null,null,null,null,null,null,null,null,null,null,null,"15029",150209,"DEPÓSITO DE AGUA","Polígono 2D","Contenedor usado para el almacenamiento de agua."]
[null,null,null,null,null,null,null,null,null,null,null,null,null,null,null,null,null,null,null,null,null,null,null,null,null,"150210",150210,"TANQUE DE FILTRACIÓN","Polígono 2D","Planta o tanque para la purificación de agua para el consumo humano."]
[null,null,null,null,null,null,null,null,null,null,null,null,null,null,null,null,null,null,null,null,null,null,null,null,null,"150211",150211,"TANQUE DE SEDIMENTACIÓN","Polígono 2D","Planta o tanque para el tratamiento de aguas servidas o aguas con desechos fecales."]
[null,null,null,null,null,null,null,null,null,null,null,null,null,null,null,null,null,null,null,null,null,null,null,null,null,"150212",150212,"TANQUE DE OSCILACIÓN","Punto 2D","Estructura cilíndrica que sirve  para controlar el nivel del agua de los embalses o plantas hidroeléctricas."]
[null,null,null,null,null,null,null,null,null,null,null,null,null,null,null,null,null,null,null,null,null,null,null,null,null,"150213",150213,"TANQUE AGROINDUSTRIAL","Polígono 2D","Estructura o pileta con agua que sirve para el lavado u otros procesos industriales de distintos productos agrícolas."]
[null,null,null,null,null,null,null,null,null,null,null,null,null,null,null,null,null,null,null,null,null,null,null,null,null,"150214",150214,"ESTANQUE PARA ACUICULTURA","Polígono 2D","Depósito construido para recoger agua para el cultivo de especies acuícolas."]
[null,null,null,null,null,null,null,null,null,null,null,null,null,null,null,null,null,null,null,null,null,null,null,null,null,"150215",150215,"MANANTIAL","Punto 3D","Afloramiento significativo de agua en lugares específicos (acuíferos)."]
[null,null,null,null,null,null,null,null,null,null,null,null,null,null,null,null,null,null,null,null,null,null,null,null,null,"150216",150216,"PISCINA","Polígono 2D","Receptáculo de agua construido exclusivamente para la recreación de las personas."]
[null,null,null,null,null,null,null,null,null,null,null,null,null,null,null,null,null,null,null,null,null,null,null,null,null,"150217",150217,"POZO","Polígono/Punto 2D","Agujero, excavación o túnel vertical hasta una profundidad suficiente para alcanzar una reserva de agua subterránea u otros fluidos como el petróleo."]
[null,null,null,null,null,null,null,null,null,null,null,null,null,null,null,null,null,null,null,null,null,null,null,null,null,"150218",150218,"ALCANTARILLA","Línea 3D","Paso bajo un camino o carretera para la circulación de aguas de lluvia o servidas. También hace referencia a la evidencia física de un río o quebrada entubada."]
[null,null,null,null,null,null,null,null,null,null,null,null,null,null,null,null,null,null,null,null,null,null,null,null,null,"15031",150301,"ISLA","Polígono 3D","Porción de tierra mas o menos extensa rodeada totalmente por agua."]
[null,null,null,null,null,null,null,null,null,null,null,null,null,null,null,null,null,null,null,null,null,null,null,null,null,"15032",150302,"ISLOTE","Polígono 3D","Porción de tierra mas pequeña que una isla rodeada totalmente por agua y generalmente deshabitada."]
[null,null,null,null,null,null,null,null,null,null,null,null,null,null,null,null,null,null,null,null,null,null,null,null,null,"15033",150303,"PLAYA","Polígono 2D","La orilla del mar o de un lago, arenosa o guijarrosa generada por las olas."]
[null,null,null,null,null,null,null,null,null,null,null,null,null,null,null,null,null,null,null,null,null,null,null,null,null,"15034",150304,"SALINA","Polígono 3D","Una salina es un lugar donde se deja evaporar agua salada, para dejar solo la sal, poder secarla y recogerla para su venta."]
[null,null,null,null,null,null,null,null,null,null,null,null,null,null,null,null,null,null,null,null,null,null,null,null,null,"15035",150305,"BAJOS","Polígono 3D","Depósitos de arena o roca en zonas costeras sobre el fondo del mar, por lo cual el nivel del lecho marino se eleva hasta niveles muy próximos a la superficie del mar.\n"]
[null,null,null,null,null,null,null,null,null,null,null,null,null,null,null,null,null,null,null,null,null,null,null,null,null,"15036",150306,"NAUFRAGIO AL DESCUBIERTO","Punto 2D","Son los restos semi-sumergidos de una embarcación próximos a la superficie del mar.\n"]
[null,null,null,null,null,null,null,null,null,null,null,null,null,null,null,null,null,null,null,null,null,null,null,null,null,"15037",150307,"NAUFRAGIO SUMERGIDO","Punto 2D","Son los restos  sumergidos de una embarcación.\n"]
[null,null,null,null,null,null,null,null,null,null,null,null,null,null,null,null,null,null,null,null,null,null,null,null,null,"15038",150308,"ROCA SUMERGIDA","Punto 2D","Formación rocosa marina que esta sumergida y puede convertirse en un peligro para la navegación marítima.\n"]
[null,null,null,null,null,null,null,null,null,null,null,null,null,null,null,null,null,null,null,null,null,null,null,null,null,"15039",150309,"ROCA AL DESCUBIERTO","Punto 2D","Formación rocosa marina que está expuesta en parte y puede convertirse en un peligro para la navegación marítima."]
[null,null,null,null,null,null,null,null,null,null,null,null,null,null,null,null,null,null,null,null,null,null,null,null,null,"150310",150310,"ARRECIFE","Línea 3D","Estructuras sólidas del relieve del fondo marino formadas predominantemente por el desarrollo acumulado de corales pétreos."]
[null,null,null,null,null,null,null,null,null,null,null,null,null,null,null,null,null,null,null,null,null,null,null,null,null,"150311",150311,"PELIGRO SUBMARINO","Punto 2D","Es un peligro para la navegación, no se especifica la naturaleza exacta del mismo o no ha sido determinada."]
[null,null,null,null,null,null,null,null,null,null,null,null,null,null,null,null,null,null,null,null,null,null,null,null,null,"16011",160101,"LIMITE INTERNACIONAL CONTINENTAL","Línea 2D","Línea que define el límite Internacional en la parte terrestre o continental."]
[null,null,null,null,null,null,null,null,null,null,null,null,null,null,null,null,null,null,null,null,null,null,null,null,null,"16012",160102,"LÍMITE INTERNACIONAL  MARÍTIMO","Línea 2D","Línea que define el límite Internacional dentro de las masas oceánicas."]
[null,null,null,null,null,null,null,null,null,null,null,null,null,null,null,null,null,null,null,null,null,null,null,null,null,"16013",160103,"LÍMITE PROVINCIAL","Polígono 2D","Línea que define el límite de una provincia."]
[null,null,null,null,null,null,null,null,null,null,null,null,null,null,null,null,null,null,null,null,null,null,null,null,null,"16014",160104,"LÍMITE CANTONAL","Polígono 2D","Línea que define el límite de un cantón."]
[null,null,null,null,null,null,null,null,null,null,null,null,null,null,null,null,null,null,null,null,null,null,null,null,null,"16015",160105,"LÍMITE DISTRITAL","Polígono 2D","Línea que define el límite de un distrito."]
[null,null,null,null,null,null,null,null,null,null,null,null,null,null,null,null,null,null,null,null,null,null,null,null,null,"16016",160106,"LÍNEA BASE","Línea 2D","Línea a partir de la cual se delimita la franja de 12 millas náuticas de mar territorial, 24 millas náuticas de zona contigua y 200 millas náuticas de Zona Económica Exclusiva."]
[null,null,null,null,null,null,null,null,null,null,null,null,null,null,null,null,null,null,null,null,null,null,null,null,null,"16017",160107,"LÍNEA DE PLEAMAR ORDINARIA","Línea 3D","Curvas de elevación de 1.15 en el pacífico y 0.20 para el Caribe en el caso de Costa Rica."]
[null,null,null,null,null,null,null,null,null,null,null,null,null,null,null,null,null,null,null,null,null,null,null,null,null,"16018",160108,"ZONA PÚBLICA","Polígono 3D","Es la franja  de 50 metros a partir de la pleamar ordinaria."]
[null,null,null,null,null,null,null,null,null,null,null,null,null,null,null,null,null,null,null,null,null,null,null,null,null,"16019",160109,"ZONA RESTRINGIDA","Polígono 3D","Es la franja de 150 metros a partir de la línea de Zona Pública."]
[null,null,null,null,null,null,null,null,null,null,null,null,null,null,null,null,null,null,null,null,null,null,null,null,null,"160110",160110,"ZONA MARÍTIMO TERRESTRE","Polígono 2D","Se compone de 150 metros de Zona Pública y 50 metros de Zona restringida."]
[null,null,null,null,null,null,null,null,null,null,null,null,null,null,null,null,null,null,null,null,null,null,null,null,null,"160111",160111,"MAR TERRITORIAL","Polígono 2D","Son las doce 12 millas náuticas a  partir de la Línea de Base."]
[null,null,null,null,null,null,null,null,null,null,null,null,null,null,null,null,null,null,null,null,null,null,null,null,null,"160112",160112,"ZONA CONTIGUA","Polígono 2D","Son las veinticuatro millas náuticas a  partir de la Línea de Base."]
[null,null,null,null,null,null,null,null,null,null,null,null,null,null,null,null,null,null,null,null,null,null,null,null,null,"160113",160113,"ZONA ECONÓMICA EXCLUSIVA","Polígono 2D","Es una franja de 200 millas náuticas medida a partir de la Línea Base."]
[null,null,null,null,null,null,null,null,null,null,null,null,null,null,null,null,null,null,null,null,null,null,null,null,null,"160114",160114,"HITO O MOJON FRONTERIZO","Punto 3D","Monumentación de piedra que sirve para demarcar los límites de dos países vecinos, incluye información de los países inscritos, fecha colocación y coordenadas."]
[null,null,null,null,null,null,null,null,null,null,null,null,null,null,null,null,null,null,null,null,null,null,null,null,null,"160115",160115,"MOJON ZMT","Punto 3D","Monumentación de piedra que sirve para demarcar los límites  de la Zona Maritima Terrestre."]
[null,null,null,null,null,null,null,null,null,null,null,null,null,null,null,null,null,null,null,null,null,null,null,null,null,"16021",160201,"ÁREA DENSAMENTE CONSTRUIDA/URBANA","Polígono 2D","Concentración de numerosos edificios contiguos, o tan cerca uno del otro, que la mayoría quedarían unidos si se simbolizasen individualmente."]
[null,null,null,null,null,null,null,null,null,null,null,null,null,null,null,null,null,null,null,null,null,null,null,null,null,"16022",160202,"ÁREA CULTURAL","Polígono 2D","Áreas dedicadas a un espacio educativo, académico o a la investigación."]
[null,null,null,null,null,null,null,null,null,null,null,null,null,null,null,null,null,null,null,null,null,null,null,null,null,"16023",160203,"ÁREA DE USO INDUSTRIAL","Polígono 2D","Concentración de edificios destinados a labores industriales o de transformación de distintas materias primas."]
[null,null,null,null,null,null,null,null,null,null,null,null,null,null,null,null,null,null,null,null,null,null,null,null,null,"16024",160204,"RELLENO SANITARIO","Polígono 3D","Es el método  y lugar donde se depositan y se tratan los desechos sólidos."]
[null,null,null,null,null,null,null,null,null,null,null,null,null,null,null,null,null,null,null,null,null,null,null,null,null,"16025",160205,"MINA","Polígono 3D","Instalación subterráneas a base de galerías para extraer minerales o rocas."]
[null,null,null,null,null,null,null,null,null,null,null,null,null,null,null,null,null,null,null,null,null,null,null,null,null,"16026",160206,"TAJO O CANTERA","Polígono 3D","Una cantera es una explotación minera, generalmente a cielo abierto, en la que se obtienen rocas industriales u ornamentales."]
[null,null,null,null,null,null,null,null,null,null,null,null,null,null,null,null,null,null,null,null,null,null,null,null,null,"16031",160301,"ÁREAS SILVESTRES PROTEGIDAS","Polígono 3D","Un área protegida es el espacio físico dentro de las áreas de conservación, donde se preservan las diferentes especies y sus ecosistemas."]
[null,null,null,null,null,null,null,null,null,null,null,null,null,null,null,null,null,null,null,null,null,null,null,null,null,"16032",160302,"TERRITORIOS INDÍGENAS","Polígono 3D","Son áreas geográficas ocupadas tradicionalmente por los pueblos indígenas sin detrimento de los que en el futuro, por ley o por decreto ejecutivo, se logren crear."]
[null,null,null,null,null,null,null,null,null,null,null,null,null,null,null,null,null,null,null,null,null,null,null,null,null,"16033",160303,"TERRITORIOS DEL INSTITUTO DE DESARROLLO RURAL (INDER)","Polígono 3D","Son territorios de uso público/comunal que están bajo la gestión de diversas instituciones."]
[null,null,null,null,null,null,null,null,null,null,null,null,null,null,null,null,null,null,null,null,null,null,null,null,null,"17011",170101,"LÍMITE DE VEGETACIÓN","Línea 2D","Línea que representa la delimitación de un área cubierta por un determinado tipo de cobertura."]
[null,null,null,null,null,null,null,null,null,null,null,null,null,null,null,null,null,null,null,null,null,null,null,null,null,"17012",170102,"BOSQUE","Polígono 2D","Áreas pobladas de árboles y en condición natural."]
[null,null,null,null,null,null,null,null,null,null,null,null,null,null,null,null,null,null,null,null,null,null,null,null,null,"17013",170103,"PASTOS","Polígono 2D","Superficies cubiertas principalmente de gramíneas."]
[null,null,null,null,null,null,null,null,null,null,null,null,null,null,null,null,null,null,null,null,null,null,null,null,null,"17014",170104,"MANGLAR","Polígono 2D","Crecimiento denso de árboles en regiones tropicales que crecen en áreas bajas y expuesta a la influencia de las mareas."]
[null,null,null,null,null,null,null,null,null,null,null,null,null,null,null,null,null,null,null,null,null,null,null,null,null,"17015",170105,"PASTO CON ÁRBOLES DISPERSOS","Polígono 2D","Superficies cubiertas de gramíneas con especies arbóreas dispersas."]
[null,null,null,null,null,null,null,null,null,null,null,null,null,null,null,null,null,null,null,null,null,null,null,null,null,"17016",170106,"PÁRAMO","Polígono 2D","El área de páramo es un ecosistema montano intertropical con predomino de vegetación tipo matorral (arbustos). Se ubican por lo general, después de los 3000 msnm."]
[null,null,null,null,null,null,null,null,null,null,null,null,null,null,null,null,null,null,null,null,null,null,null,null,null,"17017",170107,"YOLILLAL","Polígono 2D","Áreas con variedad de palma de troncos múltiples y hojas muy largas, que crece en los terrenos cenagosos de las zonas de clima caliente y húmedo."]
[null,null,null,null,null,null,null,null,null,null,null,null,null,null,null,null,null,null,null,null,null,null,null,null,null,"17018",170108,"CHARRAL/TACOTAL","Polígono 2D","Área con vegetación herbácea y arbustiva entremezclada (en algunas situaciones con escasos árboles)."]
[null,null,null,null,null,null,null,null,null,null,null,null,null,null,null,null,null,null,null,null,null,null,null,null,null,"17021",170201,"CULTIVOS","Polígono 2D","Se refiere a aquellas áreas con variedad de cultivos sean permanentes o anuales."]
[null,null,null,null,null,null,null,null,null,null,null,null,null,null,null,null,null,null,null,null,null,null,null,null,null,"17022",170202,"CAFÉ","Polígono 2D","Áreas cultivadas exclusivamente de café y en algunos casos en asocio con especies arborescentes."]
[null,null,null,null,null,null,null,null,null,null,null,null,null,null,null,null,null,null,null,null,null,null,null,null,null,"17023",170203,"HORTALIZAS Y GRANOS","Polígono 2D","Áreas cultivadas con cualquier tipo de hortalizas y granos."]
[null,null,null,null,null,null,null,null,null,null,null,null,null,null,null,null,null,null,null,null,null,null,null,null,null,"17024",170204,"CAÑA DE AZÚCAR","Polígono 2D","Áreas cultivadas de caña de azúcar (entendiéndose también como plantación)."]
[null,null,null,null,null,null,null,null,null,null,null,null,null,null,null,null,null,null,null,null,null,null,null,null,null,"17025",170205,"ÁRBOLES FRUTALES","Polígono 2D","Áreas cubiertas de siembras productoras de frutas (guayaba, mangos, cítricos, fresas, aguacates y otros)."]
[null,null,null,null,null,null,null,null,null,null,null,null,null,null,null,null,null,null,null,null,null,null,null,null,null,"17026",170206,"PLANTACIÓN FORESTAL","Polígono 2D","Áreas conformadas por especies exclusivamente arbóreas, plantadas para la extracción de madera y otros subproductos."]
[null,null,null,null,null,null,null,null,null,null,null,null,null,null,null,null,null,null,null,null,null,null,null,null,null,"17027",170207,"PLANTAS ORNAMENTALES","Polígono 2D","Áreas cultivadas de plantas exclusivas para fines decorativos, y generalmente para su exportación."]
[null,null,null,null,null,null,null,null,null,null,null,null,null,null,null,null,null,null,null,null,null,null,null,null,null,"17028",170208,"OTROS CULTIVOS","Polígono 2D","Se refiere a aquellas áreas con variedad de cultivos destinado a la subsistencia, sean permanentes o anuales, pero a pequeña escala."]
[null,null,null,null,null,null,null,null,null,null,null,null,null,null,null,null,null,null,null,null,null,null,null,null,null,"17029",170209,"ERIAL/SUELO DESNUDO","Polígono 2D","Esta cobertura corresponde a las superficies de terreno desprovistas de vegetación, debido a la ocurrencia de procesos tanto naturales como antrópicos de erosión y degradación extrema."]
[null,null,null,null,null,null,null,null,null,null,null,null,null,null,null,null,null,null,null,null,null,null,null,null,null,"18011",180101,"FOTO VERTICAL (NADIR) - FOTOCENTRO","Punto","Es aquella imagen o fotografía aérea tomada justo sobre los objetos geográficos en línea recta."]
[null,null,null,null,null,null,null,null,null,null,null,null,null,null,null,null,null,null,null,null,null,null,null,null,null,"18012",180102,"FOTO OBLICUA - FOTOCENTRO","Punto","Es aquella que toma los objetos geográficos en ángulo (normalmente de 40°) desde aviones de vuelo a baja altura."]
[null,null,null,null,null,null,null,null,null,null,null,null,null,null,null,null,null,null,null,null,null,null,null,null,null,"18013",180103,"ORTOFOTO - FOTOCENTRO","Punto","Es una fotografía aérea vertical geométricamente corregida."]
[null,null,null,null,null,null,null,null,null,null,null,null,null,null,null,null,null,null,null,null,null,null,null,null,null,"18021",180201,"ORTOIMAGEN SATELITAL - FOTOCENTRO","Punto","Es una imagen de satélite geométricamente corregida."]
[null,null,null,null,null,null,null,null,null,null,null,null,null,null,null,null,null,null,null,null,null,null,null,null,null,"18031",180301,"ORTOIMAGEN RADAR - FOTOCENTRO","Punto","Es una imagen de radar (capturada por ondas de radio) geométricamente corregida."]
[null,null,null,null,null,null,null,null,null,null,null,null,null,null,null,null,null,null,null,null,null,null,null,null,null,"18041",180401,"MODELO DE SUPERFICIE - CENTROIDE","Punto","Es la tecnología que permite determinar la distancia desde un emisor láser a un objeto o superficie utilizando un rayo láser."]
[null,null,null,null,null,null,null,null,null,null,null,null,null,null,null,null,null,null,null,null,null,null,null,null,null,"19011",190101,"CIUDAD/CABECERA DE PROVINCIA","Anotación 2D/Punto 2D","Nombre propio y oficial de la cabecera de provincia."]
[null,null,null,null,null,null,null,null,null,null,null,null,null,null,null,null,null,null,null,null,null,null,null,null,null,"19012",190102,"CIUDAD/CABECERA DE CANTÓN","Anotación 2D/Punto 2D","Nombre propio y oficial de la cabecera del cantón."]
[null,null,null,null,null,null,null,null,null,null,null,null,null,null,null,null,null,null,null,null,null,null,null,null,null,"19013",190103,"CABECERA/CENTRO DE DISTRITO","Anotación 2D/Punto 2D","Nombre propio y oficial de la cabecera del distrito."]
[null,null,null,null,null,null,null,null,null,null,null,null,null,null,null,null,null,null,null,null,null,null,null,null,null,"19014",190104,"POBLADO","Anotación 2D/Punto 2D","Nombre propio y oficial  de un poblado."]
[null,null,null,null,null,null,null,null,null,null,null,null,null,null,null,null,null,null,null,null,null,null,null,null,null,"19015",190105,"BARRIO","Anotación 2D/Punto 2D","Nombre propio y oficial  de un barrio."]
[null,null,null,null,null,null,null,null,null,null,null,null,null,null,null,null,null,null,null,null,null,null,null,null,null,"19016",190106,"PROYECTOS HABITACIONALES/URBANIZACIÓN Y CONDOMINIO","Anotación 2D/Punto 2D","Nombre propio y oficial  de una urbanización."]
[null,null,null,null,null,null,null,null,null,null,null,null,null,null,null,null,null,null,null,null,null,null,null,null,null,"19017",190107,"SITIO / VUELTA / PASO","Anotación 2D/Punto 2D","Nombre propio con que se conocen a algunos sitios que no llegan a ser poblados."]
[null,null,null,null,null,null,null,null,null,null,null,null,null,null,null,null,null,null,null,null,null,null,null,null,null,"19018",190108,"HACIENDAS Y FINCAS","Anotación 2D/Punto 2D","Nombre propio con que se conocen a algunas haciendas y fincas."]
[null,null,null,null,null,null,null,null,null,null,null,null,null,null,null,null,null,null,null,null,null,null,null,null,null,"19019",190109,"PARQUES NACIONALES Y ÁREAS SILVESTRES PROTEGIDAS","Anotación 2D/Punto 2D","Nombre propio y oficial con que se conocen los parques nacionales y las áreas protegidas."]
[null,null,null,null,null,null,null,null,null,null,null,null,null,null,null,null,null,null,null,null,null,null,null,null,null,"190110",190110,"TERRITORIO/COMUNIDAD INDÍGENA","Anotación 2D/Punto 2D","Nombre propio de un territorio indígena."]
[null,null,null,null,null,null,null,null,null,null,null,null,null,null,null,null,null,null,null,null,null,null,null,null,null,"190111",190111,"TERRITORIO/ASENTAMIENTO DEL INDER","Anotación 2D/Punto 2D","Nombre propio de un territorio del INDER."]
[null,null,null,null,null,null,null,null,null,null,null,null,null,null,null,null,null,null,null,null,null,null,null,null,null,"190112",190112,"ZONA MARITIMO TERRESTRE","Anotación 2D","Se indica el area con el nombre de ZMT."]
[null,null,null,null,null,null,null,null,null,null,null,null,null,null,null,null,null,null,null,null,null,null,null,null,null,"19021",190201,"RÍO","Anotación 2D","Nombre propio y oficial de un río"]
[null,null,null,null,null,null,null,null,null,null,null,null,null,null,null,null,null,null,null,null,null,null,null,null,null,"19022",190202,"QUEBRADA , QUEBRADA INTERMITENTE, CAÑO Y ARROYO"," Anotación 2D","Nombre propio y oficial de una quebrada."]
[null,null,null,null,null,null,null,null,null,null,null,null,null,null,null,null,null,null,null,null,null,null,null,null,null,"19023",190203,"CANAL","Anotación 2D","Nombre propio y oficial de un canal."]
[null,null,null,null,null,null,null,null,null,null,null,null,null,null,null,null,null,null,null,null,null,null,null,null,null,"19024",190204,"CAUCE SECO","Anotación 2D","Nombre propio y oficial de un cauce seco."]
[null,null,null,null,null,null,null,null,null,null,null,null,null,null,null,null,null,null,null,null,null,null,null,null,null,"19025",190205,"ACEQUIA","Anotación 2D","Nombre propio con que se conoce una acequia o en su defecto se anota el nombre del accidente geográfico \"Acequia\"."]
[null,null,null,null,null,null,null,null,null,null,null,null,null,null,null,null,null,null,null,null,null,null,null,null,null,"19026",190206,"YURRO","Anotación 2D","Nombre propio con que se conoce un yurro o en su defecto se anota el nombre del accidente \"yurro\"."]
[null,null,null,null,null,null,null,null,null,null,null,null,null,null,null,null,null,null,null,null,null,null,null,null,null,"19027",190207,"LAGO O LAGUNA","Anotación 2D","Nombre propio y oficial de un lago o laguna."]
[null,null,null,null,null,null,null,null,null,null,null,null,null,null,null,null,null,null,null,null,null,null,null,null,null,"19028",190208,"LAGUNA INTERMITENTE","Anotación 2D","Nombre propio y oficial de un laguna intermitente."]
[null,null,null,null,null,null,null,null,null,null,null,null,null,null,null,null,null,null,null,null,null,null,null,null,null,"19029",190209,"EMBALSE","Anotación 2D","Nombre propio y oficial de un embalse."]
[null,null,null,null,null,null,null,null,null,null,null,null,null,null,null,null,null,null,null,null,null,null,null,null,null,"190210",190210,"PANTANO","Anotación 2D","Nombre propio con que senoce a un pantano o se anota el nombre del accidente geográfico \"Pantano\". "]
[null,null,null,null,null,null,null,null,null,null,null,null,null,null,null,null,null,null,null,null,null,null,null,null,null,"190211",190211,"CATARATA Y RÁPIDO","Anotación 2D","Nombre propio con que se conoce a una catarata o rápido, o se anota el nombre del accidente geográfico \"Catarata\"."]
[null,null,null,null,null,null,null,null,null,null,null,null,null,null,null,null,null,null,null,null,null,null,null,null,null,"190212",190212,"MANANTIAL","Anotación 2D","Nombre propio con que se conoce a un manantial, o se anota el nombre del accidente geográfico \"Manantial\"."]
[null,null,null,null,null,null,null,null,null,null,null,null,null,null,null,null,null,null,null,null,null,null,null,null,null,"190213",190213,"POZO","Anotación 2D","Nombre propio con que se conoce un pozo o se anota el nombre del elemento \"Pozo\"."]
[null,null,null,null,null,null,null,null,null,null,null,null,null,null,null,null,null,null,null,null,null,null,null,null,null,"190214",190214,"DEPÓSITO DE AGUA","Anotación 2D","Nombre propio con que se conoce un depósito de agua o se anota el nombre del elemento \"Agua\"."]
[null,null,null,null,null,null,null,null,null,null,null,null,null,null,null,null,null,null,null,null,null,null,null,null,null,"190215",190215,"ACUEDUCTO","Anotación 2D","Nombre propio con que se conoce un acueducto o se anota el nombre del elemento \"Acueducto\"."]
[null,null,null,null,null,null,null,null,null,null,null,null,null,null,null,null,null,null,null,null,null,null,null,null,null,"190216",190216,"OLEODUCTO","Anotación 2D","Nombre propio con que se conoce un oleoducto o se anota el nombre del elemento \"Oleoducto\"."]
[null,null,null,null,null,null,null,null,null,null,null,null,null,null,null,null,null,null,null,null,null,null,null,null,null,"190217",190217,"VADO","Anotación 2D","Nombre propio con que se conoce un vado o se anota el nombre del elemento \"Vado\"."]
[null,null,null,null,null,null,null,null,null,null,null,null,null,null,null,null,null,null,null,null,null,null,null,null,null,"19031",190301,"CORDILLERA","Anotación 2D","Nombre propio y oficial de una Cordillera."]
[null,null,null,null,null,null,null,null,null,null,null,null,null,null,null,null,null,null,null,null,null,null,null,null,null,"19032",190302,"FILA","Anotación 2D","Nombre propio y oficial de una fila."]
[null,null,null,null,null,null,null,null,null,null,null,null,null,null,null,null,null,null,null,null,null,null,null,null,null,"19033",190303,"ALTO","Anotación 2D","Nombre propio y oficial de un alto."]
[null,null,null,null,null,null,null,null,null,null,null,null,null,null,null,null,null,null,null,null,null,null,null,null,null,"19034",190304,"BAJO","Anotación 2D","Nombre propio y oficial de un bajo."]
[null,null,null,null,null,null,null,null,null,null,null,null,null,null,null,null,null,null,null,null,null,null,null,null,null,"19035",190305,"VOLCÁN","Anotación 2D","Nombre propio y oficial de un volcán."]
[null,null,null,null,null,null,null,null,null,null,null,null,null,null,null,null,null,null,null,null,null,null,null,null,null,"19036",190306,"CRÁTER","Anotación 2D","Nombre propio y oficial de un cráter."]
[null,null,null,null,null,null,null,null,null,null,null,null,null,null,null,null,null,null,null,null,null,null,null,null,null,"19037",190307,"CERRO","Anotación 2D","Nombre propio y oficial de un cerro."]
[null,null,null,null,null,null,null,null,null,null,null,null,null,null,null,null,null,null,null,null,null,null,null,null,null,"19038",190308,"MONTE","Anotación 2D","Nombre propio y oficial de un monte."]
[null,null,null,null,null,null,null,null,null,null,null,null,null,null,null,null,null,null,null,null,null,null,null,null,null,"19039",190309,"VALLE","Anotación 2D","Nombre propio y oficial de un valle."]
[null,null,null,null,null,null,null,null,null,null,null,null,null,null,null,null,null,null,null,null,null,null,null,null,null,"190310",190310,"LLANURA","Anotación 2D","Nombre propio y oficial de una llanura."]
[null,null,null,null,null,null,null,null,null,null,null,null,null,null,null,null,null,null,null,null,null,null,null,null,null,"190311",190311,"VALOR DE CURVA DE NIVEL","Anotación 2D","Valor de la curva de nivel."]
[null,null,null,null,null,null,null,null,null,null,null,null,null,null,null,null,null,null,null,null,null,null,null,null,null,"190312",190312,"VALOR DE ELEVACIÓN ACOTADA","Anotación 2D","Valor de las elevaciones acotadas."]
[null,null,null,null,null,null,null,null,null,null,null,null,null,null,null,null,null,null,null,null,null,null,null,null,null,"190313",190313,"NOMBRE DE VERTICE GEODÉSICO","Anotación 2D","Nombre propio con que se conoce a un vertice geodésico"]
[null,null,null,null,null,null,null,null,null,null,null,null,null,null,null,null,null,null,null,null,null,null,null,null,null,"190314",190314,"ELEVACIÓN DEL VERTICE GEODÉSICO","Anotación 2D","Valor de las elevaciones del vertice geódesico."]
[null,null,null,null,null,null,null,null,null,null,null,null,null,null,null,null,null,null,null,null,null,null,null,null,null,"190315",190315,"CUEVA / CABERNA","Anotación 2D","Nombre propio de la cueva o se anota el nombre genérico del elemento \"Cueva\"."]
[null,null,null,null,null,null,null,null,null,null,null,null,null,null,null,null,null,null,null,null,null,null,null,null,null,"19041",190401,"OCÉANO","Anotación 2D","Nombre propio y oficial de un océano."]
[null,null,null,null,null,null,null,null,null,null,null,null,null,null,null,null,null,null,null,null,null,null,null,null,null,"19042",190402,"MAR","Anotación 2D","Nombre propio y oficial de un mar."]
[null,null,null,null,null,null,null,null,null,null,null,null,null,null,null,null,null,null,null,null,null,null,null,null,null,"19043",190403,"GOLFO","Anotación 2D","Nombre propio y oficial de un golfo."]
[null,null,null,null,null,null,null,null,null,null,null,null,null,null,null,null,null,null,null,null,null,null,null,null,null,"19044",190404,"BAHÍA","Anotación 2D","Nombre propio y oficial de una bahía."]
[null,null,null,null,null,null,null,null,null,null,null,null,null,null,null,null,null,null,null,null,null,null,null,null,null,"19045",190405,"ESTERO, BOCA Y DESEMBOCADURA.","Anotación 2D","Nombre propio y oficial de un estero, boca o desembocadura de un río."]
[null,null,null,null,null,null,null,null,null,null,null,null,null,null,null,null,null,null,null,null,null,null,null,null,null,"19046",190406,"PLAYA","Anotación 2D","Nombre propio y oficial de una playa."]
[null,null,null,null,null,null,null,null,null,null,null,null,null,null,null,null,null,null,null,null,null,null,null,null,null,"19047",190407,"PUNTA","Anotación 2D","Nombre propio y oficial de una punta."]
[null,null,null,null,null,null,null,null,null,null,null,null,null,null,null,null,null,null,null,null,null,null,null,null,null,"19048",190408,"PENÍNSULA","Anotación 2D","Nombre propio y oficial de una península."]
[null,null,null,null,null,null,null,null,null,null,null,null,null,null,null,null,null,null,null,null,null,null,null,null,null,"19049",190409,"CABO","Anotación 2D","Nombre propio y oficial de un cabo."]
[null,null,null,null,null,null,null,null,null,null,null,null,null,null,null,null,null,null,null,null,null,null,null,null,null,"190410",190410,"ISLA O ISLOTE","Anotación 2D","Nombre propio y oficial de una isla o islote."]
[null,null,null,null,null,null,null,null,null,null,null,null,null,null,null,null,null,null,null,null,null,null,null,null,null,"190411",190411,"ROCA / PEÑÓN","Anotación 2D","Nombre propio de la roca o se anota el nombre del elemento \"Roca\"."]
[null,null,null,null,null,null,null,null,null,null,null,null,null,null,null,null,null,null,null,null,null,null,null,null,null,"190412",190412,"SALINA","Anotación 2D","Nombre propio de la salina o se anota el nombre genérico del elemento \"Salina\"."]
[null,null,null,null,null,null,null,null,null,null,null,null,null,null,null,null,null,null,null,null,null,null,null,null,null,"19051",190501,"CENTRO EDUCATIVO, INSTITUCIÓN GUBERNAMENTAL, INSTITUCIÓN AUTÓNOMA PÚBLICA, IGLESIA, SEMINARIO, TEATRO NACIONAL, HOSPITAL, ASILO PÚBLICO, RUINA, BENEFICIO, SILO, ASERRADERO, TUNEL, PEAJE, PLANTA ELECTRICA, SUBESTACIÓN, TANQUE DE SEDIMENTACIÓN, TANQUE DE FILTRACIÓN, PLANTEL MUNICIPAL, PRESA, REPRESA.","Anotación 2D","Nombre propio del centro educativo, institución gubernamental y autónoma, iglesia, fincas, haciendas, ruina, entre otros."]
[null,null,null,null,null,null,null,null,null,null,null,null,null,null,null,null,null,null,null,null,null,null,null,null,null,"19052",190502,"CENTRO RECREATIVO PÚBLICO, CENTRO DEPORTIVO PÚBLICO, PARQUE ZOOLÓGICO PÚBLICO, ESTACIÓN EXPERIMENTAL, ESTADIO MUNICIPALES, PLAZA COMUNAL, CANCHA, PARQUE COMUNAL, CEMENTERIO PÚBLICO, INVERNADERO, VIVERO, TAJO, GRANJA, ESTABLO, RELLENO SANITARIO, PLAZA DE TOROS, ESTACIÓN DE FERROCARRIL, MIRADOR","Anotación 2D","Nombre propio y oficial de un centro recreativo, centro deportivo, zoológico, estación experimental, estadio, plaza, parque, cementerio, entre otros."]
[null,null,null,null,null,null,null,null,null,null,null,null,null,null,null,null,null,null,null,null,null,null,null,null,null,"19053",190503,"UNIVERSIDAD","Anotación 2D","Nombre propio de la Universidad en forma completa o bien la forma abreviada."]
[null,null,null,null,null,null,null,null,null,null,null,null,null,null,null,null,null,null,null,null,null,null,null,null,null,"19054",190504,"ZONA INDUSTRIAL, PARQUE INDUSTRIAL","Anotación 2D","Nombre propio de una zona industrial o en su defecto se rotula con el nombre de \"Zona Industrial\"."]
[null,null,null,null,null,null,null,null,null,null,null,null,null,null,null,null,null,null,null,null,null,null,null,null,null,"19055",190505,"CALLE Y/O AVENIDA","Anotación 2D","Nombre o número con que se conoce una calle y/o avenida."]
[null,null,null,null,null,null,null,null,null,null,null,null,null,null,null,null,null,null,null,null,null,null,null,null,null,"19056",190506,"CARRETERA Y/O AUTOPISTA","Anotación 2D","Nombre o número con que se conoce una carretera o autopista."]
[null,null,null,null,null,null,null,null,null,null,null,null,null,null,null,null,null,null,null,null,null,null,null,null,null,"19057",190507,"FERROCARRIL","Anotación 2D","Nombre propio con que se conoce una via de ferrocarril."]
[null,null,null,null,null,null,null,null,null,null,null,null,null,null,null,null,null,null,null,null,null,null,null,null,null,"19058",190508,"AEROPUERTO / PISTA DE ATERRIZAJE / CAMPO DE ATERRIZAJE","Anotación 2D","Nombre propio con que se conoce un aeropuerto o pista de aterrizaje."]
[null,null,null,null,null,null,null,null,null,null,null,null,null,null,null,null,null,null,null,null,null,null,null,null,null,"19059",190509,"MUELLE/PUERTO","Anotación 2D","Nombre propio con que se conoce un muelle."]
[null,null,null,null,null,null,null,null,null,null,null,null,null,null,null,null,null,null,null,null,null,null,null,null,null,"190510",190510,"DESTINO VIAL","Anotación 2D","Nombre del lugar de destino más próximo de un camino que continua su trazo entre hojas adyacentes."]
[null,null,null,null,null,null,null,null,null,null,null,null,null,null,null,null,null,null,null,null,null,null,null,null,null,"190511",190511,"NÚMERO DE RUTA","Anotación 2D","Número oficial de las rutas públicas nacionales; clasificadas en primarias, secundarias y terciarias."]
[null,null,null,null,null,null,null,null,null,null,null,null,null,null,null,null,null,null,null,null,null,null,null,null,null,"190512",190512,"PUENTE","Anotación 2D","Nombre propio con que se conoce un puente."]
[null,null,null,null,null,null,null,null,null,null,null,null,null,null,null,null,null,null,null,null,null,null,null,null,null,"190513",190513,"PUNTO P","Anotación 2D","Letra P que indica el punto que une el diagrama de los nortes "]
[null,null,null,null,null,null,null,null,null,null,null,null,null,null,null,null,null,null,null,null,null,null,null,null,null,"20011",200101,"LÍMITE DE MANZANA CATASTRAL","Polígono 2D","Espacio geográfico donde se ubica un conjunto de predios urbanos edificados o sin edificar, está delimitado generalmente por vías públicas."]
[null,null,null,null,null,null,null,null,null,null,null,null,null,null,null,null,null,null,null,null,null,null,null,null,null,"20021",200201,"ZONA DE USO PÚBLICO","Polígono 2D","Son las zonas destinadas a las actividades y/o usos de características públicas o comunales."]
[null,null,null,null,null,null,null,null,null,null,null,null,null,null,null,null,null,null,null,null,null,null,null,null,null,"20031",200301,"CERCA/ALAMBRADA","Línea  2D","Obstáculo o barrera que se coloca en un terreno para delimitarlo, protegerlo o aislarlo."]
[null,null,null,null,null,null,null,null,null,null,null,null,null,null,null,null,null,null,null,null,null,null,null,null,null,"20032",200302,"MURO/TAPIA","Línea  2D","Estructura permanente que se construye en un terreno y sirve para delimitar, proteger, aislar, contener o separar."]
[null,null,null,null,null,null,null,null,null,null,null,null,null,null,null,null,null,null,null,null,null,null,null,null,null,"20033",200303,"PATIO","Polígono 2D","Espacios interiores en la edificaciones o terrenos abiertos en los predios que se encuentran sin construir."]
[null,null,null,null,null,null,null,null,null,null,null,null,null,null,null,null,null,null,null,null,null,null,null,null,null,"20034",200304,"ACERA","Línea 2D","Espacio público con una superficie concreto u otro material destinado al tránsito peatonal y que se encuentra  paralelo a la calzada de la calle, avenida o camino."]

{"sheet":".","index":2,"n_rows":82,"n_cols":6,"rows_kept":82,"cut":false,"hidden":false,"merged":[[2,2,7,5],[18,2,18,5]]}
[]
[]
[null,null,"CATÁLOGO DE OBJETOS GEOGRÁFICOS PARA DATOS FUNDAMENTALES DE COSTA RICA\nINSTITUTO GEOGRÁFICO NACIONAL\nVERSIÓN: 1.0\nNTIG_CR02_01.2016\nISO 19110 - ISO 19126"]
[]
[]
[]
[]
[]
[]
[]
[null,null,"TEMA"]
[null,null,"Nombre:",null,"Elegir tema"]
[null,null,"Código:"]
[]
[null,null,"GRUPO"]
[null,null,"Nombre:",null,"Elegir grupo"]
[null,null,"Código:"]
[]
[null,null,"OBJETO"]
[null,null,"Código","Nombre","Geometría","Definición"]
[]
[]
[]
[]
[]
[]
[]
[]
[]
[]
[]
[]
[]
[]
[]
[]
[]
[]
[]
[]
[]
[]
[]
[]
[]
[]
[]
[]
[]
[]
[]
[]
[]
[]
[]
[]
[]
[]
[]
[]
[]
[]
[]
[]
[]
[]
[]
[]
[]
[]
[]
[]
[]
[]
[]
[]
[]
[]
[]
[]
[]
[null,null,"","","",""]